Workbook

Sheet 1.JANUARIA
N1: xxxxxxx
B2: LOGOTIPO DA EMPRESA
M4: Data base orçamento: | N4: 2024-08-01
B5: EXECUÇÃO DE SERVIÇOS DE IMPLANTAÇÃO DE PAVIMENTAÇÃO EM BLOCO DE CONCRETO INTERTRAVADO (BLOQUETES), EM VIAS DE MUNICÍPIOS DIVERSOS INSERIDOS NA ÁREA DE ATUAÇÃO DA 1ª SUPERINTENDÊNCIA REGIONAL DA CODEVASF, NO ESTADO DE MINAS GERAIS - ITEM 1 - REGIÃO: JANUÁRIA/MG
B6: ITEM | C6: ORIGEM COMPOSIÇÃO | D6: CÓDIGO COMPOSIÇÃO | E6: DISCRIMINAÇÃO DOS SERVIÇOS | I6: BDI % = | J6: =BDI!C17 -> 0 | K6: BDI DIFERENCIADO% = | L6: =BDI!C65 -> 0 | M6: R$/m² = | N6: =N49/I8 -> 0
I7: Total de m² | J7: Encargos Sociais: | K7: Horista (%) | L7: Mensalista (%) | M7: PREÇO UNITÁRIO COM BDI | N7: PREÇO TOTAL COM BDI
I8: 42000 | K8: ='ENC. SOCIAIS'!$E$51 -> 0 | L8: ='ENC. SOCIAIS'!$F$51 -> 0
I9: UND | J9: QTDE. | K9: BDI | L9: PREÇO UNITÁRIO | AB9: TOTAL
E10: MOBILIZAÇÃO/DESMOBILIZAÇÃO
B11: 1 | C11: Codevasf | D11: Mob | E11: Mobilização | I11: kmxfrente | J11: 450 | K11: =(M11/L11-1) ->  | M11: =L11*(1+$J$6) -> 0 | N11: =ROUND(ROUND(J11,2)*ROUND(M11,6),2) -> 0 | O11: =N11/$N$49 ->  | AA11: 57163.47
B12: 2 | C12: Codevasf | D12: Mob | E12: Desmobilização | I12: kmxfrente | J12: 450 | K12: =(M12/L12-1) ->  | M12: =L12*(1+$J$6) -> 0 | N12: =ROUND(ROUND(J12,2)*ROUND(M12,6),2) -> 0 | O12: =N12/$N$49 ->  | AA12: 57163.47
E13: INSTALAÇÃO DE CANTEIRO
B14: 3 | C14: Codevasf | D14: Canteiro | E14: Canteiro de Obras e Almoxarifado | I14: frente | J14: 5 | K14: =(M14/L14-1) ->  | M14: =L14*(1+$J$6) -> 0 | N14: =ROUND(ROUND(J14,2)*ROUND(M14,6),2) -> 0 | AA14: 190291.53
B15: 4 | C15: SINAPI | D15: 103689 | E15: FORNECIMENTO E INSTALAÇÃO DE PLACA DE OBRA COM CHAPA GALVANIZADA E ESTRUTURA DE MADEIRA | I15: m² | J15: 80 | K15: =(M15/L15-1) ->  | M15: 0 | N15: =ROUND(ROUND(J15,2)*ROUND(M15,6),2) -> 0
E16: ADMINISTRAÇÃO LOCAL DA OBRA
B17: 5 | C17: Codevasf | D17: Adm Local | E17: Administração Local da Obra | I17: und | J17: 1 | K17: =(M17/L17-1) ->  | M17: =L17*(1+$J$6) -> 0 | N17: =ROUND(ROUND(J17,2)*ROUND(M17,6),2) -> 0 | O17: =N17/N49 -> 
E18: TERRAPLANAGEM
B19: 6 | C19: SICRO | D19: 5502114 | E19: Escavação, carga e transporte de material de 1ª categoria - DMT de 1.000 a 1.200 m - caminho de serviço em leito natural - com escavadeira e caminhão basculante de 14 m³ | I19: m³ | J19: 11340 | K19: =M19/L19-1 ->  | M19: =L19*(1+$J$6) -> 0 | N19: =ROUND(ROUND(J19,2)*ROUND(M19,6),2) -> 0 | AB19: 366912
B20: 7 | C20: SICRO | D20: 4413942 | E20: Espalhamento de material em bota-fora | I20: m³ | J20: 4200 | M20: 0 | N20: 0 | AB20: 84084 | AG20: 1
E21: PAVIMENTAÇÃO
B22: 8 | C22: SINAPI | D22: 36170 | E22: Bloquete/piso intertravado de concreto - modelo hexagonal/onda/16 faces/retangular/t ijolinho/paver/holandes/paralelepipedo, *22 cm x 11* cm, e = 8 cm, resistencia de 35 mpa (nbr 9781), cor natural - fornecimento | I22: m² | J22: 42168 | K22: =M22/L22-1 ->  | M22: =L22*(1+$J$6) -> 0 | N22: =ROUND(ROUND(J22,2)*ROUND(M22,6),2) -> 0
B23: 9 | C23: SINAPI | D23: 92404 ADAPTADA | E23: Execução de pavimento em piso intertravado, com blocos pré-moldados, espessura 8 cm - exclusive fornecimento de bloquete | I23: m² | J23: 42000 | M23: 0 | N23: 0 | AB23: 13037300.31
B24: 10 | C24: SICRO | D24: 5915014 | E24: Transporte com caminhão carroceria com capacidade de 11 t e com guindauto de 45 t.m - rodovia pavimentada | I24: tkm | J24: 516096 | M24: 0 | N24: 0
B25: 11 | C25: SICRO | D25: 5915321 | E25: Transporte com caminhão basculante de 14 m³ - rodovia pavimentada (colchão de areia) | I25: tkm | J25: 143136 | K25: =M25/L25-1 ->  | M25: 0 | N25: =ROUND(ROUND(J25,2)*ROUND(M25,6),2) -> 0
B26: 12 | C26: SICRO | D26: 5915321 | E26: Transporte com caminhão basculante de 14 m³ - rodovia pavimentada (pó de pedra) | I26: tkm | J26: 37044 | K26: =M26/L26-1 ->  | M26: 0 | N26: =ROUND(ROUND(J26,2)*ROUND(M26,6),2) -> 0
B27: 13 | C27: SICRO | D27: 4011221 | E27: Base estabilizada granulometricamente com mistura de solos na pista com material de jazida | I27: m³ | J27: 6300 | M27: 0 | N27: 0 | AB27: 15919722
B28: 14 | C28: SICRO | D28: 4011209 | E28: Regularização do subleito | I28: m² | J28: 42000 | M28: 0 | N28: 0 | AB28: 540540
E29: SINALIZAÇÃO
B30: 15 | C30: SICRO | D30: 5213440 | E30: Fornecimento e implantação de placa de regulamentação em aço D = 0,60 m - película retrorrefletiva tipo I + SI | I30: und | J30: 30 | K30: =M30/L30-1 ->  | M30: =L30*(1+$J$6) -> 0 | N30: =ROUND(ROUND(J30,2)*ROUND(M30,6),2) -> 0 | AB30: 9985.95
B31: 16 | C31: SICRO | D31: 5213464 | E31: Placa de advertência em aço, lado de 0,60 m - película retrorrefletiva tipo I + SI - fornecimento e implantação | I31: und | J31: 30 | M31: 0 | N31: 0
B32: 17 | C32: SICRO | D32: 5213863 | E32: Suporte metálico galvanizado para placa de advertência ou regulamentação - lado ou diâmetro de 0,60 m - fornecimento e implantação | I32: und | J32: 60 | M32: 0 | N32: 0 | AB32: 13086.06
B33: 18 | C33: SICRO | D33: 5213400 | E33: Pintura de faixa com tinta acrílica - espessura de 0,4 mm | I33: m² | J33: 1400 | M33: 0 | N33: 0
E34: DRENAGEM
B35: 19 | C35: SINAPI | D35: 94273 | E35: ASSENTAMENTO DE GUIA (MEIO-FIO) CONFECCIONADA EM CONCRETO PRÉ-FABRICADO, DIMENSÕES 100X15X13X30 CM (COMPRIMENTO X BASE INFERIOR X BASE SUPERIOR X ALTURA) | I35: m | J35: 12000 | K35: =M35/L35-1 ->  | M35: =L35*(1+$J$6) -> 0 | N35: =ROUND(ROUND(J35,2)*ROUND(M35,6),2) -> 0 | AB35: 4514640
B36: 20 | C36: SINAPI | D36: 94287 | E36: EXECUÇÃO DE SARJETA DE CONCRETO USINADO, MOLDADA IN LOCO, 30 CM BASE X 10 CM ALTURA | I36: m | J36: 12000 | K36: =M36/L36-1 ->  | M36: 0 | N36: 0
B37: 21 | C37: SICRO | D37: 4915724 | E37: Caiação mecanizada com fixador de cal | I37: m² | J37: 3480 | K37: =(M37/L37-1) ->  | M37: 0 | N37: =ROUND(ROUND(J37,2)*ROUND(M37,6),2) -> 0 | Y37: 4514640
E38: SERVIÇOS COMPLEMENTARES
B39: 22 | C39: Codevasf | D39: CPU-02 | E39: Conserto de quebra no ramal na rua sem pavimento com fornecimento de material hidráulico | I39: m | J39: 600 | K39: =M39/L39-1 ->  | M39: =L39*(1+$J$6) -> 0 | N39: =ROUND(ROUND(J39,2)*ROUND(M39,6),2) -> 0 | AB39: 139854
E40: PROJETO EXECUTIVO
B41: 23 | C41: Codevasf | D41: Composição Própria | E41: Projeto Executivo | I41: m² | J41: 42000 | K41: =M41/L41-1 ->  | M41: =L41*(1+$J$6) -> 0 | N41: =ROUND(ROUND(J41,2)*ROUND(M41,6),2) -> 0 | AB41: 763671.38
E42: MOMENTO DE TRANSPORTE
B43: 24 | C43: SICRO | D43: 5914359 | E43: Transporte com caminhão basculante de 10 m³ - rodovia em leito natural | I43: tkm | J43: 45290.0488 | K43: =M43/L43-1 ->  | M43: =L43*(1+$J$6) -> 0 | N43: =ROUND(ROUND(J43,2)*ROUND(M43,6),2) -> 0
B44: 25 | C44: SICRO | D44: 5914374 | E44: Transporte com caminhão basculante de 10 m³ - rodovia em revestimento primário | I44: tkm | J44: 45290.0488 | M44: 0 | N44: 0
B45: 26 | C45: SICRO | D45: 5914389 | E45: Transporte com caminhão basculante de 10 m³ - rodovia pavimentada | I45: tkm | J45: 99143.2993 | M45: 0 | N45: 0
B46: 27 | C46: SICRO | D46: 5914449 | E46: Transporte com caminhão carroceria de 15 t - rodovia em leito natural | I46: tkm | J46: 509.531136 | M46: 0 | N46: 0
B47: 28 | C47: SICRO | D47: 5914464 | E47: Transporte com caminhão carroceria de 15 t - rodovia em revestimento primário | I47: tkm | J47: 509.531136 | M47: 0 | N47: 0
B48: 29 | C48: SICRO | D48: 5914479 | E48: Transporte com caminhão carroceria de 15 t - rodovia pavimentada | I48: tkm | J48: 509.531136 | M48: 0 | N48: 0
B49: VALOR TOTAL DO SRP | N49: =SUM(N10:N48) -> 0 | O49: =N49/J14 -> 0 | AB49: =SUM(AB18:AB41) -> 35389795.7
B50: Obs.: Os valores estão apresentados com apenas 2 casas decimais, mas os valores da presente planilha foram calculados utilizando a precisão de 6 casa decimais.

Sheet 2.SALINAS
N1: xxxxxxx
B2: LOGOTIPO DA EMPRESA
M4: Data base orçamento: | N4: 2024-08-01
B5: EXECUÇÃO DE SERVIÇOS DE IMPLANTAÇÃO DE PAVIMENTAÇÃO EM BLOCO DE CONCRETO INTERTRAVADO (BLOQUETES), EM VIAS DE MUNICÍPIOS DIVERSOS INSERIDOS NA ÁREA DE ATUAÇÃO DA 1ª SUPERINTENDÊNCIA REGIONAL DA CODEVASF, NO ESTADO DE MINAS GERAIS - ITEM 2 - REGIÃO: SALINAS/MG
B6: ITEM | C6: ORIGEM COMPOSIÇÃO | D6: CÓDIGO COMPOSIÇÃO | E6: DISCRIMINAÇÃO DOS SERVIÇOS | I6: BDI % = | J6: =BDI!C17 -> 0 | K6: BDI DIFERENCIADO% = | L6: =BDI!C65 -> 0 | M6: R$/m² = | N6: =N49/I8 -> 0
I7: Total de m² | J7: Encargos Sociais: | K7: Horista (%) | L7: Mensalista (%) | M7: PREÇO UNITÁRIO COM BDI | N7: PREÇO TOTAL COM BDI
I8: 42000 | K8: ='ENC. SOCIAIS'!$E$51 -> 0 | L8: ='ENC. SOCIAIS'!$F$51 -> 0
I9: UND | J9: QTDE. | K9: BDI | L9: PREÇO UNITÁRIO | AB9: TOTAL
E10: MOBILIZAÇÃO/DESMOBILIZAÇÃO
B11: 1 | C11: Codevasf | D11: Mob | E11: Mobilização | I11: kmxfrente | J11: 400 | K11: =(M11/L11-1) ->  | M11: =L11*(1+$J$6) -> 0 | N11: =ROUND(ROUND(J11,2)*ROUND(M11,6),2) -> 0 | O11: =N11/$N$49 ->  | AA11: 57163.47
B12: 2 | C12: Codevasf | D12: Mob | E12: Desmobilização | I12: kmxfrente | J12: 400 | K12: =(M12/L12-1) ->  | M12: =L12*(1+$J$6) -> 0 | N12: =ROUND(ROUND(J12,2)*ROUND(M12,6),2) -> 0 | O12: =N12/$N$49 ->  | AA12: 57163.47
E13: INSTALAÇÃO DE CANTEIRO
B14: 3 | C14: Codevasf | D14: Canteiro | E14: Canteiro de Obras e Almoxarifado | I14: frente | J14: 5 | K14: =(M14/L14-1) ->  | M14: =L14*(1+$J$6) -> 0 | N14: =ROUND(ROUND(J14,2)*ROUND(M14,6),2) -> 0 | AA14: 190291.53
B15: 4 | C15: SINAPI | D15: 103689 | E15: FORNECIMENTO E INSTALAÇÃO DE PLACA DE OBRA COM CHAPA GALVANIZADA E ESTRUTURA DE MADEIRA | I15: m² | J15: 80 | K15: =(M15/L15-1) ->  | M15: 0 | N15: =ROUND(ROUND(J15,2)*ROUND(M15,6),2) -> 0
E16: ADMINISTRAÇÃO LOCAL DA OBRA
B17: 5 | C17: Codevasf | D17: Adm Local | E17: Administração Local da Obra | I17: und | J17: 1 | K17: =(M17/L17-1) ->  | M17: =L17*(1+$J$6) -> 0 | N17: =ROUND(ROUND(J17,2)*ROUND(M17,6),2) -> 0 | O17: =N17/N49 -> 
E18: TERRAPLANAGEM
B19: 6 | C19: SICRO | D19: 5502114 | E19: Escavação, carga e transporte de material de 1ª categoria - DMT de 1.000 a 1.200 m - caminho de serviço em leito natural - com escavadeira e caminhão basculante de 14 m³ | I19: m³ | J19: 11340 | K19: =M19/L19-1 ->  | M19: =L19*(1+$J$6) -> 0 | N19: =ROUND(ROUND(J19,2)*ROUND(M19,6),2) -> 0 | AB19: 366912
B20: 7 | C20: SICRO | D20: 4413942 | E20: Espalhamento de material em bota-fora | I20: m³ | J20: 4200 | M20: 0 | N20: 0 | AB20: 84084 | AG20: 1
E21: PAVIMENTAÇÃO
B22: 8 | C22: SINAPI | D22: 36170 | E22: Bloquete/piso intertravado de concreto - modelo hexagonal/onda/16 faces/retangular/t ijolinho/paver/holandes/paralelepipedo, *22 cm x 11* cm, e = 8 cm, resistencia de 35 mpa (nbr 9781), cor natural - fornecimento | I22: m² | J22: 42168 | K22: =M22/L22-1 ->  | M22: =L22*(1+$J$6) -> 0 | N22: =ROUND(ROUND(J22,2)*ROUND(M22,6),2) -> 0
B23: 9 | C23: SINAPI | D23: 92404 ADAPTADA | E23: Execução de pavimento em piso intertravado, com blocos pré-moldados, espessura 8 cm - exclusive fornecimento de bloquete | I23: m² | J23: 42000 | M23: 0 | N23: 0 | AB23: 13037300.31
B24: 10 | C24: SICRO | D24: 5915014 | E24: Transporte com caminhão carroceria com capacidade de 11 t e com guindauto de 45 t.m - rodovia pavimentada | I24: tkm | J24: 516096 | M24: 0 | N24: 0
B25: 11 | C25: SICRO | D25: 5915321 | E25: Transporte com caminhão basculante de 14 m³ - rodovia pavimentada (colchão de areia) | I25: tkm | J25: 143136 | M25: 0 | N25: 0
B26: 12 | C26: SICRO | D26: 5915321 | E26: Transporte com caminhão basculante de 14 m³ - rodovia pavimentada (pó de pedra) | I26: tkm | J26: 24696 | M26: 0 | N26: 0
B27: 13 | C27: SICRO | D27: 4011221 | E27: Base estabilizada granulometricamente com mistura de solos na pista com material de jazida | I27: m³ | J27: 6300 | M27: 0 | N27: 0 | AB27: 15919722
B28: 14 | C28: SICRO | D28: 4011209 | E28: Regularização do subleito | I28: m² | J28: 42000 | M28: 0 | N28: 0 | AB28: 540540
E29: SINALIZAÇÃO
B30: 15 | C30: SICRO | D30: 5213440 | E30: Fornecimento e implantação de placa de regulamentação em aço D = 0,60 m - película retrorrefletiva tipo I + SI | I30: und | J30: 30 | K30: =M30/L30-1 ->  | M30: =L30*(1+$J$6) -> 0 | N30: =ROUND(ROUND(J30,2)*ROUND(M30,6),2) -> 0 | AB30: 9985.95
B31: 16 | C31: SICRO | D31: 5213464 | E31: Placa de advertência em aço, lado de 0,60 m - película retrorrefletiva tipo I + SI - fornecimento e implantação | I31: und | J31: 30 | M31: 0 | N31: 0
B32: 17 | C32: SICRO | D32: 5213863 | E32: Suporte metálico galvanizado para placa de advertência ou regulamentação - lado ou diâmetro de 0,60 m - fornecimento e implantação | I32: und | J32: 60 | M32: 0 | N32: 0 | AB32: 13086.06
B33: 18 | C33: SICRO | D33: 5213400 | E33: Pintura de faixa com tinta acrílica - espessura de 0,4 mm | I33: m² | J33: 1400 | M33: 0 | N33: 0
E34: DRENAGEM
B35: 19 | C35: SINAPI | D35: 94273 | E35: ASSENTAMENTO DE GUIA (MEIO-FIO) CONFECCIONADA EM CONCRETO PRÉ-FABRICADO, DIMENSÕES 100X15X13X30 CM (COMPRIMENTO X BASE INFERIOR X BASE SUPERIOR X ALTURA) | I35: m | J35: 12000 | K35: =M35/L35-1 ->  | M35: =L35*(1+$J$6) -> 0 | N35: =ROUND(ROUND(J35,2)*ROUND(M35,6),2) -> 0 | AB35: 4514640
B36: 20 | C36: SINAPI | D36: 94287 | E36: EXECUÇÃO DE SARJETA DE CONCRETO USINADO, MOLDADA IN LOCO, 30 CM BASE X 10 CM ALTURA | I36: m | J36: 12000 | K36: =M36/L36-1 ->  | M36: 0 | N36: 0
B37: 21 | C37: SICRO | D37: 4915724 | E37: Caiação mecanizada com fixador de cal | I37: m² | J37: 3480 | K37: =(M37/L37-1) ->  | M37: 0 | N37: 0 | Y37: 4514640
E38: SERVIÇOS COMPLEMENTARES
B39: 22 | C39: Codevasf | D39: CPU-02 | E39: Conserto de quebra no ramal na rua sem pavimento com fornecimento de material hidráulico | I39: m | J39: 600 | K39: =M39/L39-1 ->  | M39: =L39*(1+$J$6) -> 0 | N39: =ROUND(ROUND(J39,2)*ROUND(M39,6),2) -> 0 | AB39: 139854
E40: PROJETO EXECUTIVO
B41: 23 | C41: Codevasf | D41: Composição Própria | E41: Projeto Executivo | I41: m² | J41: 42000 | K41: =M41/L41-1 ->  | M41: =L41*(1+$J$6) -> 0 | N41: =ROUND(ROUND(J41,2)*ROUND(M41,6),2) -> 0 | AB41: 763671.38
E42: MOMENTO DE TRANSPORTE
B43: 24 | C43: SICRO | D43: 5914359 | E43: Transporte com caminhão basculante de 10 m³ - rodovia em leito natural | I43: tkm | J43: 37330.01449 | K43: =M43/L43-1 ->  | M43: =L43*(1+$J$6) -> 0 | N43: =ROUND(ROUND(J43,2)*ROUND(M43,6),2) -> 0
B44: 25 | C44: SICRO | D44: 5914374 | E44: Transporte com caminhão basculante de 10 m³ - rodovia em revestimento primário | I44: tkm | J44: 37330.01449 | M44: 0 | N44: 0
B45: 26 | C45: SICRO | D45: 5914389 | E45: Transporte com caminhão basculante de 10 m³ - rodovia pavimentada | I45: tkm | J45: 91183.26499 | M45: 0 | N45: 0
B46: 27 | C46: SICRO | D46: 5914449 | E46: Transporte com caminhão carroceria de 15 t - rodovia em leito natural | I46: tkm | J46: 509.531136 | M46: 0 | N46: 0
B47: 28 | C47: SICRO | D47: 5914464 | E47: Transporte com caminhão carroceria de 15 t - rodovia em revestimento primário | I47: tkm | J47: 509.531136 | M47: 0 | N47: 0
B48: 29 | C48: SICRO | D48: 5914479 | E48: Transporte com caminhão carroceria de 15 t - rodovia pavimentada | I48: tkm | J48: 509.531136 | M48: 0 | N48: 0
B49: VALOR TOTAL DO SRP | N49: =SUM(N10:N48) -> 0 | O49: =N49/J14 -> 0 | AB49: =SUM(AB18:AB41) -> 35389795.7
B50: Obs.: Os valores estão apresentados com apenas 2 casas decimais, mas os valores da presente planilha foram calculados utilizando a precisão de 6 casa decimais.

Sheet 3.ARAÇUAI
N1: xxxxxxx
B2: LOGOTIPO DA EMPRESA
M4: Data base orçamento: | N4: 2024-08-01
B5: EXECUÇÃO DE SERVIÇOS DE IMPLANTAÇÃO DE PAVIMENTAÇÃO EM BLOCO DE CONCRETO INTERTRAVADO (BLOQUETES), EM VIAS DE MUNICÍPIOS DIVERSOS INSERIDOS NA ÁREA DE ATUAÇÃO DA 1ª SUPERINTENDÊNCIA REGIONAL DA CODEVASF, NO ESTADO DE MINAS GERAIS - ITEM 3 - REGIÃO: ARAÇUAÍ/MG
B6: ITEM | C6: ORIGEM COMPOSIÇÃO | D6: CÓDIGO COMPOSIÇÃO | E6: DISCRIMINAÇÃO DOS SERVIÇOS | I6: BDI % = | J6: =BDI!C17 -> 0 | K6: BDI DIFERENCIADO% = | L6: =BDI!C65 -> 0 | M6: R$/m² = | N6: =N49/I8 -> 0
I7: Total de m² | J7: Encargos Sociais: | K7: Horista (%) | L7: Mensalista (%) | M7: PREÇO UNITÁRIO COM BDI | N7: PREÇO TOTAL COM BDI
I8: 42000 | K8: ='ENC. SOCIAIS'!$E$51 -> 0 | L8: ='ENC. SOCIAIS'!$F$51 -> 0
I9: UND | J9: QTDE. | K9: BDI | L9: PREÇO UNITÁRIO | AB9: TOTAL
E10: MOBILIZAÇÃO/DESMOBILIZAÇÃO
B11: 1 | C11: Codevasf | D11: Mob | E11: Mobilização | I11: kmxfrente | J11: 450 | K11: =(M11/L11-1) ->  | M11: =L11*(1+$J$6) -> 0 | N11: =ROUND(ROUND(J11,2)*ROUND(M11,6),2) -> 0 | O11: =N11/$N$49 ->  | AA11: 57163.47
B12: 2 | C12: Codevasf | D12: Mob | E12: Desmobilização | I12: kmxfrente | J12: 450 | K12: =(M12/L12-1) ->  | M12: =L12*(1+$J$6) -> 0 | N12: =ROUND(ROUND(J12,2)*ROUND(M12,6),2) -> 0 | O12: =N12/$N$49 ->  | AA12: 57163.47
E13: INSTALAÇÃO DE CANTEIRO
B14: 3 | C14: Codevasf | D14: Canteiro | E14: Canteiro de Obras e Almoxarifado | I14: frente | J14: 5 | K14: =(M14/L14-1) ->  | M14: =L14*(1+$J$6) -> 0 | N14: =ROUND(ROUND(J14,2)*ROUND(M14,6),2) -> 0 | AA14: 190291.53
B15: 4 | C15: SINAPI | D15: 103689 | E15: FORNECIMENTO E INSTALAÇÃO DE PLACA DE OBRA COM CHAPA GALVANIZADA E ESTRUTURA DE MADEIRA | I15: m² | J15: 80 | K15: =(M15/L15-1) ->  | M15: 0 | N15: =ROUND(ROUND(J15,2)*ROUND(M15,6),2) -> 0
E16: ADMINISTRAÇÃO LOCAL DA OBRA
B17: 5 | C17: Codevasf | D17: Adm Local | E17: Administração Local da Obra | I17: und | J17: 1 | K17: =(M17/L17-1) ->  | M17: =L17*(1+$J$6) -> 0 | N17: =ROUND(ROUND(J17,2)*ROUND(M17,6),2) -> 0 | O17: =N17/N49 -> 
E18: TERRAPLANAGEM
B19: 6 | C19: SICRO | D19: 5502114 | E19: Escavação, carga e transporte de material de 1ª categoria - DMT de 1.000 a 1.200 m - caminho de serviço em leito natural - com escavadeira e caminhão basculante de 14 m³ | I19: m³ | J19: 11340 | K19: =M19/L19-1 ->  | M19: =L19*(1+$J$6) -> 0 | N19: =ROUND(ROUND(J19,2)*ROUND(M19,6),2) -> 0 | AB19: 366912
B20: 7 | C20: SICRO | D20: 4413942 | E20: Espalhamento de material em bota-fora | I20: m³ | J20: 4200 | M20: 0 | N20: 0 | AB20: 84084 | AG20: 1
E21: PAVIMENTAÇÃO
B22: 8 | C22: SINAPI | D22: 36170 | E22: Bloquete/piso intertravado de concreto - modelo hexagonal/onda/16 faces/retangular/t ijolinho/paver/holandes/paralelepipedo, *22 cm x 11* cm, e = 8 cm, resistencia de 35 mpa (nbr 9781), cor natural - fornecimento | I22: m² | J22: 42168 | K22: =M22/L22-1 ->  | M22: =L22*(1+$J$6) -> 0 | N22: =ROUND(ROUND(J22,2)*ROUND(M22,6),2) -> 0
B23: 9 | C23: SINAPI | D23: 92404 ADAPTADA | E23: Execução de pavimento em piso intertravado, com blocos pré-moldados, espessura 8 cm - exclusive fornecimento de bloquete | I23: m² | J23: 42000 | M23: 0 | N23: 0 | AB23: 13037300.31
B24: 10 | C24: SICRO | D24: 5915014 | E24: Transporte com caminhão carroceria com capacidade de 11 t e com guindauto de 45 t.m - rodovia pavimentada | I24: tkm | J24: 602112 | M24: 0 | N24: 0
B25: 11 | C25: SICRO | D25: 5915321 | E25: Transporte com caminhão basculante de 14 m³ - rodovia pavimentada (colchão de areia) | I25: tkm | J25: 143136 | M25: 0 | N25: 0
B26: 12 | C26: SICRO | D26: 5915321 | E26: Transporte com caminhão basculante de 14 m³ - rodovia pavimentada (pó de pedra) | I26: tkm | J26: 37044 | M26: 0 | N26: 0
B27: 13 | C27: SICRO | D27: 4011221 | E27: Base estabilizada granulometricamente com mistura de solos na pista com material de jazida | I27: m³ | J27: 6300 | M27: 0 | N27: 0 | AB27: 15919722
B28: 14 | C28: SICRO | D28: 4011209 | E28: Regularização do subleito | I28: m² | J28: 42000 | M28: 0 | N28: 0 | AB28: 540540
E29: SINALIZAÇÃO
B30: 15 | C30: SICRO | D30: 5213440 | E30: Fornecimento e implantação de placa de regulamentação em aço D = 0,60 m - película retrorrefletiva tipo I + SI | I30: und | J30: 30 | K30: =M30/L30-1 ->  | M30: =L30*(1+$J$6) -> 0 | N30: =ROUND(ROUND(J30,2)*ROUND(M30,6),2) -> 0 | AB30: 9985.95
B31: 16 | C31: SICRO | D31: 5213464 | E31: Placa de advertência em aço, lado de 0,60 m - película retrorrefletiva tipo I + SI - fornecimento e implantação | I31: und | J31: 30 | M31: 0 | N31: 0
B32: 17 | C32: SICRO | D32: 5213863 | E32: Suporte metálico galvanizado para placa de advertência ou regulamentação - lado ou diâmetro de 0,60 m - fornecimento e implantação | I32: und | J32: 60 | M32: 0 | N32: 0 | AB32: 13086.06
B33: 18 | C33: SICRO | D33: 5213400 | E33: Pintura de faixa com tinta acrílica - espessura de 0,4 mm | I33: m² | J33: 1400 | M33: 0 | N33: 0
E34: DRENAGEM
B35: 19 | C35: SINAPI | D35: 94273 | E35: ASSENTAMENTO DE GUIA (MEIO-FIO) CONFECCIONADA EM CONCRETO PRÉ-FABRICADO, DIMENSÕES 100X15X13X30 CM (COMPRIMENTO X BASE INFERIOR X BASE SUPERIOR X ALTURA) | I35: m | J35: 12000 | K35: =M35/L35-1 ->  | M35: =L35*(1+$J$6) -> 0 | N35: =ROUND(ROUND(J35,2)*ROUND(M35,6),2) -> 0 | AB35: 4514640
B36: 20 | C36: SINAPI | D36: 94287 | E36: EXECUÇÃO DE SARJETA DE CONCRETO USINADO, MOLDADA IN LOCO, 30 CM BASE X 10 CM ALTURA | I36: m | J36: 12000 | K36: =M36/L36-1 ->  | M36: 0 | N36: 0
B37: 21 | C37: SICRO | D37: 4915724 | E37: Caiação mecanizada com fixador de cal | I37: m² | J37: 3480 | K37: =(M37/L37-1) ->  | M37: 0 | N37: 0 | Y37: 4514640
E38: SERVIÇOS COMPLEMENTARES
B39: 22 | C39: Codevasf | D39: CPU-02 | E39: Conserto de quebra no ramal na rua sem pavimento com fornecimento de material hidráulico | I39: m | J39: 600 | K39: =M39/L39-1 ->  | M39: =L39*(1+$J$6) -> 0 | N39: =ROUND(ROUND(J39,2)*ROUND(M39,6),2) -> 0 | AB39: 139854
E40: PROJETO EXECUTIVO
B41: 23 | C41: Codevasf | D41: Composição Própria | E41: Projeto Executivo | I41: m² | J41: 42000 | K41: =M41/L41-1 ->  | M41: =L41*(1+$J$6) -> 0 | N41: =ROUND(ROUND(J41,2)*ROUND(M41,6),2) -> 0 | AB41: 763671.38
E42: MOMENTO DE TRANSPORTE
B43: 24 | C43: SICRO | D43: 5914359 | E43: Transporte com caminhão basculante de 10 m³ - rodovia em leito natural | I43: tkm | J43: 45290.0488 | K43: =M43/L43-1 ->  | M43: =L43*(1+$J$6) -> 0 | N43: =ROUND(ROUND(J43,2)*ROUND(M43,6),2) -> 0
B44: 25 | C44: SICRO | D44: 5914374 | E44: Transporte com caminhão basculante de 10 m³ - rodovia em revestimento primário | I44: tkm | J44: 45290.0488 | M44: 0 | N44: 0
B45: 26 | C45: SICRO | D45: 5914389 | E45: Transporte com caminhão basculante de 10 m³ - rodovia pavimentada | I45: tkm | J45: 99143.2993 | M45: 0 | N45: 0
B46: 27 | C46: SICRO | D46: 5914449 | E46: Transporte com caminhão carroceria de 15 t - rodovia em leito natural | I46: tkm | J46: 509.531136 | M46: 0 | N46: 0
B47: 28 | C47: SICRO | D47: 5914464 | E47: Transporte com caminhão carroceria de 15 t - rodovia em revestimento primário | I47: tkm | J47: 509.531136 | M47: 0 | N47: 0
B48: 29 | C48: SICRO | D48: 5914479 | E48: Transporte com caminhão carroceria de 15 t - rodovia pavimentada | I48: tkm | J48: 509.531136 | M48: 0 | N48: 0
B49: VALOR TOTAL DO SRP | N49: =SUM(N10:N48) -> 0 | O49: =N49/J14 -> 0 | AB49: =SUM(AB18:AB41) -> 35389795.7
B50: Obs.: Os valores estão apresentados com apenas 2 casas decimais, mas os valores da presente planilha foram calculados utilizando a precisão de 6 casa decimais.

Sheet 4.CAPELINHA
N1: xxxxxxx
B2: LOGOTIPO DA EMPRESA
M4: Data base orçamento: | N4: 2024-08-01
B5: EXECUÇÃO DE SERVIÇOS DE IMPLANTAÇÃO DE PAVIMENTAÇÃO EM BLOCO DE CONCRETO INTERTRAVADO (BLOQUETES), EM VIAS DE MUNICÍPIOS DIVERSOS INSERIDOS NA ÁREA DE ATUAÇÃO DA 1ª SUPERINTENDÊNCIA REGIONAL DA CODEVASF, NO ESTADO DE MINAS GERAIS - ITEM 4 - REGIÃO: CAPELINHA/MG
B6: ITEM | C6: ORIGEM COMPOSIÇÃO | D6: CÓDIGO COMPOSIÇÃO | E6: DISCRIMINAÇÃO DOS SERVIÇOS | I6: BDI % = | J6: =BDI!C17 -> 0 | K6: BDI DIFERENCIADO% = | L6: =BDI!C65 -> 0 | M6: R$/m² = | N6: =N49/I8 -> 0
I7: Total de m² | J7: Encargos Sociais: | K7: Horista (%) | L7: Mensalista (%) | M7: PREÇO UNITÁRIO COM BDI | N7: PREÇO TOTAL COM BDI
I8: 42000 | K8: ='ENC. SOCIAIS'!$E$51 -> 0 | L8: ='ENC. SOCIAIS'!$F$51 -> 0
I9: UND | J9: QTDE. | K9: BDI | L9: PREÇO UNITÁRIO | AB9: TOTAL
E10: MOBILIZAÇÃO/DESMOBILIZAÇÃO
B11: 1 | C11: Codevasf | D11: Mob | E11: Mobilização | I11: kmxfrente | J11: 600 | K11: =(M11/L11-1) ->  | M11: =L11*(1+$J$6) -> 0 | N11: =ROUND(ROUND(J11,2)*ROUND(M11,6),2) -> 0 | O11: =N11/$N$49 ->  | AA11: 57163.47
B12: 2 | C12: Codevasf | D12: Mob | E12: Desmobilização | I12: kmxfrente | J12: 600 | K12: =(M12/L12-1) ->  | M12: =L12*(1+$J$6) -> 0 | N12: =ROUND(ROUND(J12,2)*ROUND(M12,6),2) -> 0 | O12: =N12/$N$49 ->  | AA12: 57163.47
E13: INSTALAÇÃO DE CANTEIRO
B14: 3 | C14: Codevasf | D14: Canteiro | E14: Canteiro de Obras e Almoxarifado | I14: frente | J14: 5 | K14: =(M14/L14-1) ->  | M14: =L14*(1+$J$6) -> 0 | N14: =ROUND(ROUND(J14,2)*ROUND(M14,6),2) -> 0 | AA14: 190291.53
B15: 4 | C15: SINAPI | D15: 103689 | E15: FORNECIMENTO E INSTALAÇÃO DE PLACA DE OBRA COM CHAPA GALVANIZADA E ESTRUTURA DE MADEIRA | I15: m² | J15: 80 | K15: =(M15/L15-1) ->  | M15: 0 | N15: =ROUND(ROUND(J15,2)*ROUND(M15,6),2) -> 0
E16: ADMINISTRAÇÃO LOCAL DA OBRA
B17: 5 | C17: Codevasf | D17: Adm Local | E17: Administração Local da Obra | I17: und | J17: 1 | K17: =(M17/L17-1) ->  | M17: =L17*(1+$J$6) -> 0 | N17: =ROUND(ROUND(J17,2)*ROUND(M17,6),2) -> 0 | O17: =N17/N49 -> 
E18: TERRAPLANAGEM
B19: 6 | C19: SICRO | D19: 5502114 | E19: Escavação, carga e transporte de material de 1ª categoria - DMT de 1.000 a 1.200 m - caminho de serviço em leito natural - com escavadeira e caminhão basculante de 14 m³ | I19: m³ | J19: 11340 | K19: =M19/L19-1 ->  | M19: =L19*(1+$J$6) -> 0 | N19: =ROUND(ROUND(J19,2)*ROUND(M19,6),2) -> 0 | AB19: 366912
B20: 7 | C20: SICRO | D20: 4413942 | E20: Espalhamento de material em bota-fora | I20: m³ | J20: 4200 | M20: 0 | N20: 0 | AB20: 84084 | AG20: 1
E21: PAVIMENTAÇÃO
B22: 8 | C22: SINAPI | D22: 36170 | E22: Bloquete/piso intertravado de concreto - modelo hexagonal/onda/16 faces/retangular/t ijolinho/paver/holandes/paralelepipedo, *22 cm x 11* cm, e = 8 cm, resistencia de 35 mpa (nbr 9781), cor natural - fornecimento | I22: m² | J22: 42168 | K22: =M22/L22-1 ->  | M22: =L22*(1+$J$6) -> 0 | N22: =ROUND(ROUND(J22,2)*ROUND(M22,6),2) -> 0
B23: 9 | C23: SINAPI | D23: 92404 ADAPTADA | E23: Execução de pavimento em piso intertravado, com blocos pré-moldados, espessura 8 cm - exclusive fornecimento de bloquete | I23: m² | J23: 42000 | M23: 0 | N23: 0 | AB23: 13037300.31
B24: 10 | C24: SICRO | D24: 5915014 | E24: Transporte com caminhão carroceria com capacidade de 11 t e com guindauto de 45 t.m - rodovia pavimentada | I24: tkm | J24: 688128 | M24: 0 | N24: 0
B25: 11 | C25: SICRO | D25: 5915321 | E25: Transporte com caminhão basculante de 14 m³ - rodovia pavimentada (colchão de areia) | I25: tkm | J25: 143136 | M25: 0 | N25: 0
B26: 12 | C26: SICRO | D26: 5915321 | E26: Transporte com caminhão basculante de 14 m³ - rodovia pavimentada (pó de pedra) | I26: tkm | J26: 37044 | M26: 0 | N26: 0
B27: 13 | C27: SICRO | D27: 4011221 | E27: Base estabilizada granulometricamente com mistura de solos na pista com material de jazida | I27: m³ | J27: 6300 | M27: 0 | N27: 0 | AB27: 15919722
B28: 14 | C28: SICRO | D28: 4011209 | E28: Regularização do subleito | I28: m² | J28: 42000 | M28: 0 | N28: 0 | AB28: 540540
E29: SINALIZAÇÃO
B30: 15 | C30: SICRO | D30: 5213440 | E30: Fornecimento e implantação de placa de regulamentação em aço D = 0,60 m - película retrorrefletiva tipo I + SI | I30: und | J30: 30 | K30: =M30/L30-1 ->  | M30: =L30*(1+$J$6) -> 0 | N30: =ROUND(ROUND(J30,2)*ROUND(M30,6),2) -> 0 | AB30: 9985.95
B31: 16 | C31: SICRO | D31: 5213464 | E31: Placa de advertência em aço, lado de 0,60 m - película retrorrefletiva tipo I + SI - fornecimento e implantação | I31: und | J31: 30 | M31: 0 | N31: 0
B32: 17 | C32: SICRO | D32: 5213863 | E32: Suporte metálico galvanizado para placa de advertência ou regulamentação - lado ou diâmetro de 0,60 m - fornecimento e implantação | I32: und | J32: 60 | M32: 0 | N32: 0 | AB32: 13086.06
B33: 18 | C33: SICRO | D33: 5213400 | E33: Pintura de faixa com tinta acrílica - espessura de 0,4 mm | I33: m² | J33: 1400 | M33: 0 | N33: 0
E34: DRENAGEM
B35: 19 | C35: SINAPI | D35: 94273 | E35: ASSENTAMENTO DE GUIA (MEIO-FIO) CONFECCIONADA EM CONCRETO PRÉ-FABRICADO, DIMENSÕES 100X15X13X30 CM (COMPRIMENTO X BASE INFERIOR X BASE SUPERIOR X ALTURA) | I35: m | J35: 12000 | K35: =M35/L35-1 ->  | M35: =L35*(1+$J$6) -> 0 | N35: =ROUND(ROUND(J35,2)*ROUND(M35,6),2) -> 0 | AB35: 4514640
B36: 20 | C36: SINAPI | D36: 94287 | E36: EXECUÇÃO DE SARJETA DE CONCRETO USINADO, MOLDADA IN LOCO, 30 CM BASE X 10 CM ALTURA | I36: m | J36: 12000 | K36: =M36/L36-1 ->  | M36: 0 | N36: 0
B37: 21 | C37: SICRO | D37: 4915724 | E37: Caiação mecanizada com fixador de cal | I37: m² | J37: 3480 | K37: =(M37/L37-1) ->  | M37: 0 | N37: 0 | Y37: 4514640
E38: SERVIÇOS COMPLEMENTARES
B39: 22 | C39: Codevasf | D39: CPU-02 | E39: Conserto de quebra no ramal na rua sem pavimento com fornecimento de material hidráulico | I39: m | J39: 600 | K39: =M39/L39-1 ->  | M39: =L39*(1+$J$6) -> 0 | N39: =ROUND(ROUND(J39,2)*ROUND(M39,6),2) -> 0 | AB39: 139854
E40: PROJETO EXECUTIVO
B41: 23 | C41: Codevasf | D41: Composição Própria | E41: Projeto Executivo | I41: m² | J41: 42000 | K41: =M41/L41-1 ->  | M41: =L41*(1+$J$6) -> 0 | N41: =ROUND(ROUND(J41,2)*ROUND(M41,6),2) -> 0 | AB41: 763671.38
E42: MOMENTO DE TRANSPORTE
B43: 24 | C43: SICRO | D43: 5914359 | E43: Transporte com caminhão basculante de 10 m³ - rodovia em leito natural | I43: tkm | J43: 45290.0488 | K43: =M43/L43-1 ->  | M43: =L43*(1+$J$6) -> 0 | N43: =ROUND(ROUND(J43,2)*ROUND(M43,6),2) -> 0
B44: 25 | C44: SICRO | D44: 5914374 | E44: Transporte com caminhão basculante de 10 m³ - rodovia em revestimento primário | I44: tkm | J44: 45290.0488 | M44: 0 | N44: 0
B45: 26 | C45: SICRO | D45: 5914389 | E45: Transporte com caminhão basculante de 10 m³ - rodovia pavimentada | I45: tkm | J45: 99143.2993 | M45: 0 | N45: 0
B46: 27 | C46: SICRO | D46: 5914449 | E46: Transporte com caminhão carroceria de 15 t - rodovia em leito natural | I46: tkm | J46: 509.531136 | M46: 0 | N46: 0
B47: 28 | C47: SICRO | D47: 5914464 | E47: Transporte com caminhão carroceria de 15 t - rodovia em revestimento primário | I47: tkm | J47: 509.531136 | M47: 0 | N47: 0
B48: 29 | C48: SICRO | D48: 5914479 | E48: Transporte com caminhão carroceria de 15 t - rodovia pavimentada | I48: tkm | J48: 509.531136 | M48: 0 | N48: 0
B49: VALOR TOTAL DO SRP | N49: =SUM(N10:N48) -> 0 | O49: =N49/J14 -> 0 | AB49: =SUM(AB18:AB41) -> 35389795.7
B50: Obs.: Os valores estão apresentados com apenas 2 casas decimais, mas os valores da presente planilha foram calculados utilizando a precisão de 6 casa decimais.

Sheet 5.ALMENARA
N1: xxxxxxx
B2: LOGOTIPO DA EMPRESA
M4: Data base orçamento: | N4: 2024-08-01
B5: EXECUÇÃO DE SERVIÇOS DE IMPLANTAÇÃO DE PAVIMENTAÇÃO EM BLOCO DE CONCRETO INTERTRAVADO (BLOQUETES), EM VIAS DE MUNICÍPIOS DIVERSOS INSERIDOS NA ÁREA DE ATUAÇÃO DA 1ª SUPERINTENDÊNCIA REGIONAL DA CODEVASF, NO ESTADO DE MINAS GERAIS - ITEM 5 - REGIÃO: ALMENARA/MG
B6: ITEM | C6: ORIGEM COMPOSIÇÃO | D6: CÓDIGO COMPOSIÇÃO | E6: DISCRIMINAÇÃO DOS SERVIÇOS | I6: BDI % = | J6: =BDI!C17 -> 0 | K6: BDI DIFERENCIADO% = | L6: =BDI!C65 -> 0 | M6: R$/m² = | N6: =N49/I8 -> 0
I7: Total de m² | J7: Encargos Sociais: | K7: Horista (%) | L7: Mensalista (%) | M7: PREÇO UNITÁRIO COM BDI | N7: PREÇO TOTAL COM BDI
I8: 42000 | K8: ='ENC. SOCIAIS'!$E$51 -> 0 | L8: ='ENC. SOCIAIS'!$F$51 -> 0
I9: UND | J9: QTDE. | K9: BDI | L9: PREÇO UNITÁRIO | AB9: TOTAL
E10: MOBILIZAÇÃO/DESMOBILIZAÇÃO
B11: 1 | C11: Codevasf | D11: Mob | E11: Mobilização | I11: kmxfrente | J11: 450 | K11: =(M11/L11-1) ->  | M11: =L11*(1+$J$6) -> 0 | N11: =ROUND(ROUND(J11,2)*ROUND(M11,6),2) -> 0 | O11: =N11/$N$49 ->  | AA11: 57163.47
B12: 2 | C12: Codevasf | D12: Mob | E12: Desmobilização | I12: kmxfrente | J12: 450 | K12: =(M12/L12-1) ->  | M12: =L12*(1+$J$6) -> 0 | N12: =ROUND(ROUND(J12,2)*ROUND(M12,6),2) -> 0 | O12: =N12/$N$49 ->  | AA12: 57163.47
E13: INSTALAÇÃO DE CANTEIRO
B14: 3 | C14: Codevasf | D14: Canteiro | E14: Canteiro de Obras e Almoxarifado | I14: frente | J14: 5 | K14: =(M14/L14-1) ->  | M14: =L14*(1+$J$6) -> 0 | N14: =ROUND(ROUND(J14,2)*ROUND(M14,6),2) -> 0 | AA14: 190291.53
B15: 4 | C15: SINAPI | D15: 103689 | E15: FORNECIMENTO E INSTALAÇÃO DE PLACA DE OBRA COM CHAPA GALVANIZADA E ESTRUTURA DE MADEIRA | I15: m² | J15: 80 | K15: =(M15/L15-1) ->  | M15: 0 | N15: =ROUND(ROUND(J15,2)*ROUND(M15,6),2) -> 0
E16: ADMINISTRAÇÃO LOCAL DA OBRA
B17: 5 | C17: Codevasf | D17: Adm Local | E17: Administração Local da Obra | I17: und | J17: 1 | K17: =(M17/L17-1) ->  | M17: =L17*(1+$J$6) -> 0 | N17: =ROUND(ROUND(J17,2)*ROUND(M17,6),2) -> 0 | O17: =N17/N49 -> 
E18: TERRAPLANAGEM
B19: 6 | C19: SICRO | D19: 5502114 | E19: Escavação, carga e transporte de material de 1ª categoria - DMT de 1.000 a 1.200 m - caminho de serviço em leito natural - com escavadeira e caminhão basculante de 14 m³ | I19: m³ | J19: 11340 | K19: =M19/L19-1 ->  | M19: =L19*(1+$J$6) -> 0 | N19: =ROUND(ROUND(J19,2)*ROUND(M19,6),2) -> 0 | AB19: 366912
B20: 7 | C20: SICRO | D20: 4413942 | E20: Espalhamento de material em bota-fora | I20: m³ | J20: 4200 | M20: 0 | N20: 0 | AB20: 84084 | AG20: 1
E21: PAVIMENTAÇÃO
B22: 8 | C22: SINAPI | D22: 36170 | E22: Bloquete/piso intertravado de concreto - modelo hexagonal/onda/16 faces/retangular/t ijolinho/paver/holandes/paralelepipedo, *22 cm x 11* cm, e = 8 cm, resistencia de 35 mpa (nbr 9781), cor natural - fornecimento | I22: m² | J22: 42168 | K22: =M22/L22-1 ->  | M22: =L22*(1+$J$6) -> 0 | N22: =ROUND(ROUND(J22,2)*ROUND(M22,6),2) -> 0
B23: 9 | C23: SINAPI | D23: 92404 ADAPTADA | E23: Execução de pavimento em piso intertravado, com blocos pré-moldados, espessura 8 cm - exclusive fornecimento de bloquete | I23: m² | J23: 42000 | M23: 0 | N23: 0 | AB23: 13037300.31
B24: 10 | C24: SICRO | D24: 5915014 | E24: Transporte com caminhão carroceria com capacidade de 11 t e com guindauto de 45 t.m - rodovia pavimentada | I24: tkm | J24: 645120 | M24: 0 | N24: 0
B25: 11 | C25: SICRO | D25: 5915321 | E25: Transporte com caminhão basculante de 14 m³ - rodovia pavimentada (colchão de areia) | I25: tkm | J25: 143136 | M25: 0 | N25: 0
B26: 12 | C26: SICRO | D26: 5915321 | E26: Transporte com caminhão basculante de 14 m³ - rodovia pavimentada (pó de pedra) | I26: tkm | J26: 37044 | M26: 0 | N26: 0
B27: 13 | C27: SICRO | D27: 4011221 | E27: Base estabilizada granulometricamente com mistura de solos na pista com material de jazida | I27: m³ | J27: 6300 | M27: 0 | N27: 0 | AB27: 15919722
B28: 14 | C28: SICRO | D28: 4011209 | E28: Regularização do subleito | I28: m² | J28: 42000 | M28: 0 | N28: 0 | AB28: 540540
E29: SINALIZAÇÃO
B30: 15 | C30: SICRO | D30: 5213440 | E30: Fornecimento e implantação de placa de regulamentação em aço D = 0,60 m - película retrorrefletiva tipo I + SI | I30: und | J30: 30 | K30: =M30/L30-1 ->  | M30: =L30*(1+$J$6) -> 0 | N30: =ROUND(ROUND(J30,2)*ROUND(M30,6),2) -> 0 | AB30: 9985.95
B31: 16 | C31: SICRO | D31: 5213464 | E31: Placa de advertência em aço, lado de 0,60 m - película retrorrefletiva tipo I + SI - fornecimento e implantação | I31: und | J31: 30 | M31: 0 | N31: 0
B32: 17 | C32: SICRO | D32: 5213863 | E32: Suporte metálico galvanizado para placa de advertência ou regulamentação - lado ou diâmetro de 0,60 m - fornecimento e implantação | I32: und | J32: 60 | M32: 0 | N32: 0 | AB32: 13086.06
B33: 18 | C33: SICRO | D33: 5213400 | E33: Pintura de faixa com tinta acrílica - espessura de 0,4 mm | I33: m² | J33: 1400 | M33: 0 | N33: 0
E34: DRENAGEM
B35: 19 | C35: SINAPI | D35: 94273 | E35: ASSENTAMENTO DE GUIA (MEIO-FIO) CONFECCIONADA EM CONCRETO PRÉ-FABRICADO, DIMENSÕES 100X15X13X30 CM (COMPRIMENTO X BASE INFERIOR X BASE SUPERIOR X ALTURA) | I35: m | J35: 12000 | K35: =M35/L35-1 ->  | M35: =L35*(1+$J$6) -> 0 | N35: =ROUND(ROUND(J35,2)*ROUND(M35,6),2) -> 0 | AB35: 4514640
B36: 20 | C36: SINAPI | D36: 94287 | E36: EXECUÇÃO DE SARJETA DE CONCRETO USINADO, MOLDADA IN LOCO, 30 CM BASE X 10 CM ALTURA | I36: m | J36: 12000 | K36: =M36/L36-1 ->  | M36: 0 | N36: 0
B37: 21 | C37: SICRO | D37: 4915724 | E37: Caiação mecanizada com fixador de cal | I37: m² | J37: 3480 | K37: =(M37/L37-1) ->  | M37: 0 | N37: 0 | Y37: 4514640
E38: SERVIÇOS COMPLEMENTARES
B39: 22 | C39: Codevasf | D39: CPU-02 | E39: Conserto de quebra no ramal na rua sem pavimento com fornecimento de material hidráulico | I39: m | J39: 600 | K39: =M39/L39-1 ->  | M39: =L39*(1+$J$6) -> 0 | N39: =ROUND(ROUND(J39,2)*ROUND(M39,6),2) -> 0 | AB39: 139854
E40: PROJETO EXECUTIVO
B41: 23 | C41: Codevasf | D41: Composição Própria | E41: Projeto Executivo | I41: m² | J41: 42000 | K41: =M41/L41-1 ->  | M41: =L41*(1+$J$6) -> 0 | N41: =ROUND(ROUND(J41,2)*ROUND(M41,6),2) -> 0 | AB41: 763671.38
E42: MOMENTO DE TRANSPORTE
B43: 24 | C43: SICRO | D43: 5914359 | E43: Transporte com caminhão basculante de 10 m³ - rodovia em leito natural | I43: tkm | J43: 45290.0488 | K43: =M43/L43-1 ->  | M43: =L43*(1+$J$6) -> 0 | N43: =ROUND(ROUND(J43,2)*ROUND(M43,6),2) -> 0
B44: 25 | C44: SICRO | D44: 5914374 | E44: Transporte com caminhão basculante de 10 m³ - rodovia em revestimento primário | I44: tkm | J44: 45290.0488 | M44: 0 | N44: 0
B45: 26 | C45: SICRO | D45: 5914389 | E45: Transporte com caminhão basculante de 10 m³ - rodovia pavimentada | I45: tkm | J45: 99143.2993 | M45: 0 | N45: 0
B46: 27 | C46: SICRO | D46: 5914449 | E46: Transporte com caminhão carroceria de 15 t - rodovia em leito natural | I46: tkm | J46: 509.531136 | M46: 0 | N46: 0
B47: 28 | C47: SICRO | D47: 5914464 | E47: Transporte com caminhão carroceria de 15 t - rodovia em revestimento primário | I47: tkm | J47: 509.531136 | M47: 0 | N47: 0
B48: 29 | C48: SICRO | D48: 5914479 | E48: Transporte com caminhão carroceria de 15 t - rodovia pavimentada | I48: tkm | J48: 509.531136 | M48: 0 | N48: 0
B49: VALOR TOTAL DO SRP | N49: =SUM(N10:N48) -> 0 | O49: =N49/J14 -> 0 | AB49: =SUM(AB18:AB41) -> 35389795.7
B50: Obs.: Os valores estão apresentados com apenas 2 casas decimais, mas os valores da presente planilha foram calculados utilizando a precisão de 6 casa decimais.

Sheet CRONOG
A1: LOGOTIPO DA EMPRESA
A2: EXECUÇÃO DE SERVIÇOS DE IMPLANTAÇÃO DE PAVIMENTAÇÃO EM BLOCO DE CONCRETO INTERTRAVADO (BLOQUETES), EM VIAS DE MUNICÍPIOS DIVERSOS INSERIDOS NA ÁREA DE ATUAÇÃO DA 1ª SUPERINTENDÊNCIA REGIONAL DA CODEVASF, NO ESTADO DE MINAS GERAIS - ITEM x - REGIÃO: xxxxxxxxxxxx/MG
A3: Cronograma Físico e Financeiro
A4: Item | B4: Descrição | C4: Total Por Etapa | D4: 30 DIAS | E4: 60 DIAS | F4: 90 DIAS | G4: 120 DIAS | H4: 150 DIAS | I4: 180 DIAS | J4: 210 DIAS | K4: 240 DIAS | L4: 270 DIAS | M4: 300 DIAS | N4: 330 DIAS | O4: 360 DIAS
B5: ='1.JANUARIA'!E10 -> MOBILIZAÇÃO/DESMOBILIZAÇÃO | C5: =SUM(D5:O5) -> 0
C6: =SUM('1.JANUARIA'!N11:N12) -> 0 | P6: =SUM(D6:O6) -> 0 | Q6: =IF(P6=C6,"OK","") -> OK
B7: ='1.JANUARIA'!E13 -> INSTALAÇÃO DE CANTEIRO | C7: =SUM(D7:O7) -> 0
C8: =SUM('1.JANUARIA'!N14:N15) -> 0 | P8: =SUM(D8:O8) -> 0 | Q8: =IF(P8=C8,"OK","") -> OK
B9: ='1.JANUARIA'!E16 -> ADMINISTRAÇÃO LOCAL DA OBRA | C9: =SUM(D9:O9) -> 0
C10: =SUM('1.JANUARIA'!N17) -> 0 | P10: =SUM(D10:O10) -> 0 | Q10: =IF(P10=C10,"OK","") -> OK
B11: ='1.JANUARIA'!E18 -> TERRAPLANAGEM | C11: =SUM(D11:O11) -> 0
C12: =SUM('1.JANUARIA'!N19:N20) -> 0 | P12: =SUM(D12:O12) -> 0 | Q12: =IF(P12=C12,"OK","") -> OK
B13: ='1.JANUARIA'!E21 -> PAVIMENTAÇÃO | C13: =SUM(D13:O13) -> 0
C14: =SUM('1.JANUARIA'!N22:N28) -> 0 | P14: =SUM(D14:O14) -> 0 | Q14: =IF(P14=C14,"OK","") -> OK
B15: ='1.JANUARIA'!E29 -> SINALIZAÇÃO | C15: =SUM(D15:O15) -> 0
C16: =SUM('1.JANUARIA'!N30:N33) -> 0 | P16: =SUM(D16:O16) -> 0 | Q16: =IF(P16=C16,"OK","") -> OK
B17: ='1.JANUARIA'!E34 -> DRENAGEM | C17: =SUM(D17:O17) -> 0
C18: =SUM('1.JANUARIA'!N35:N37) -> 0 | P18: =SUM(D18:O18) -> 0 | Q18: =IF(P18=C18,"OK","") -> OK
B19: ='1.JANUARIA'!E38 -> SERVIÇOS COMPLEMENTARES | C19: =SUM(D19:O19) -> 0
C20: =SUM('1.JANUARIA'!N39) -> 0 | P20: =SUM(D20:O20) -> 0 | Q20: =IF(P20=C20,"OK","") -> OK
B21: ='1.JANUARIA'!E40 -> PROJETO EXECUTIVO | C21: =SUM(D21:O21) -> 0
C22: =SUM('1.JANUARIA'!N41) -> 0 | P22: =SUM(D22:O22) -> 0 | Q22: =IF(P22=C22,"OK","") -> OK
B23: ='1.JANUARIA'!E42 -> MOMENTO DE TRANSPORTE | C23: =SUM(D23:O23) -> 0
C24: =SUM('1.JANUARIA'!N43:N48) -> 0 | P24: =SUM(D24:O24) -> 0 | Q24: =IF(P24=C24,"OK","") -> OK
A26: Porcentagem | D26: =SUM(D6+D8+D10+D12+D14+D16+D18+D20+D22+D24)/$O$31 ->  | E26: =SUM(E6+E8+E10+E12+E14+E16+E18+E20+E22+E24)/$O$31 -> 
A27: Custo | D27: =$O$31*D26 ->  | E27: =$O$31*E26 ->  | F27: =$O$31*F26 -> 
A28: Porcentagem Acumulado | D28: =D26 ->  | E28: =D28+E26 ->  | F28: =E28+F26 ->  | O28: =N28+O26 -> 
A29: Custo Acumulado | D29: =D27 ->  | E29: =D29+E27 -> 
D31: Total Geral | N31: R$ | O31: =C6+C8+C10+C12+C14+C16+C18+C20+C22+C24 -> 0
O34: =O29-O31 -> 
O36: ='1.JANUARIA'!N49 -> 0

Sheet MOB
A1: LOGOTIPO DA EMPRESA
A4: EXECUÇÃO DE SERVIÇOS DE IMPLANTAÇÃO DE PAVIMENTAÇÃO EM BLOCO DE CONCRETO INTERTRAVADO (BLOQUETES), EM VIAS DE MUNICÍPIOS DIVERSOS INSERIDOS NA ÁREA DE ATUAÇÃO DA 1ª SUPERINTENDÊNCIA REGIONAL DA CODEVASF, NO ESTADO DE MINAS GERAIS - ITEM x - REGIÃO: xxxxxxxxxxxx/MG
A5: MOBILIZAÇÃO/DESMOBILIZAÇÃO (MOB) | F5: Frentes de serviços
F6: Distância da Capital ao Canteiro: | I6: Fica a cargo de cada SR colocar a distancia adequada de acordo com o historico de mobilização
F8: Velocidade média de transporte (pavim.):
A10: Transporte dos equipamentos
A11: CODIGO | B11: EQUIPAMENTO | C11: VEÍCULO TRANSPORTADOR | D11: QTDE | E11: K | F11: FU | G11: CUSTO DO TRANSPORTE
G12: (R$/h) | H12: (R$)/km
A13: E9524 | B13: =VLOOKUP(A13,#REF!,2,FALSE) ->  | C13: =IFERROR(INDEX(#REF!,MATCH(A13,#REF!,0),9),"ERRO") -> ERRO | H13: =((D13*E13*F13)/$H$8)*G13 -> 
A14: E9526 | B14: =VLOOKUP(A14,#REF!,2,FALSE) ->  | C14: =IFERROR(INDEX(#REF!,MATCH(A14,#REF!,0),9),"ERRO") -> ERRO | H14: =((D14*E14*F14)/$H$8)*G14 -> 
A15: E9577 | B15: =VLOOKUP(A15,#REF!,2,FALSE) ->  | C15: =IFERROR(INDEX(#REF!,MATCH(A15,#REF!,0),9),"ERRO") -> ERRO
A16: E9518 | B16: =VLOOKUP(A16,#REF!,2,FALSE) ->  | C16: =IFERROR(INDEX(#REF!,MATCH(A16,#REF!,0),9),"ERRO") -> ERRO
A17: E9615 | B17: =VLOOKUP(A17,#REF!,2,FALSE) ->  | C17: =IFERROR(INDEX(#REF!,MATCH(A17,#REF!,0),9),"ERRO") -> ERRO
A18: E9689 | B18: =VLOOKUP(A18,#REF!,2,FALSE) ->  | C18: =IFERROR(INDEX(#REF!,MATCH(A18,#REF!,0),9),"ERRO") -> ERRO
A19: E9530 | B19: =VLOOKUP(A19,#REF!,2,FALSE) ->  | C19: =IFERROR(INDEX(#REF!,MATCH(A19,#REF!,0),9),"ERRO") -> ERRO
A20: E9558 | B20: =VLOOKUP(A20,#REF!,2,FALSE) ->  | C20: =IFERROR(INDEX(#REF!,MATCH(A20,#REF!,0),9),"ERRO") -> ERRO
A21: E9758 | B21: =VLOOKUP(A21,#REF!,2,FALSE) ->  | C21: =IFERROR(INDEX(#REF!,MATCH(A21,#REF!,0),9),"ERRO") -> ERRO
A22: E9685 | B22: =VLOOKUP(A22,#REF!,2,FALSE) ->  | C22: =IFERROR(INDEX(#REF!,MATCH(A22,#REF!,0),9),"ERRO") -> ERRO
A23: E9605 | B23: =VLOOKUP(A23,#REF!,2,FALSE) ->  | C23: =IFERROR(INDEX(#REF!,MATCH(A23,#REF!,0),9),"ERRO") -> ERRO
A24: E9579 | B24: =VLOOKUP(A24,#REF!,2,FALSE) ->  | C24: =IFERROR(INDEX(#REF!,MATCH(A24,#REF!,0),9),"ERRO") -> ERRO
A25: E9509 | B25: =VLOOKUP(A25,#REF!,2,FALSE) ->  | C25: =IFERROR(INDEX(#REF!,MATCH(A25,#REF!,0),9),"ERRO") -> ERRO
A26: E9762 | B26: =VLOOKUP(A26,#REF!,2,FALSE) ->  | C26: =IFERROR(INDEX(#REF!,MATCH(A26,#REF!,0),9),"ERRO") -> ERRO
A27: E9681 | B27: =VLOOKUP(A27,#REF!,2,FALSE) ->  | C27: =IFERROR(INDEX(#REF!,MATCH(A27,#REF!,0),9),"ERRO") -> ERRO
A28: E9545 | B28: =VLOOKUP(A28,#REF!,2,FALSE) ->  | C28: =IFERROR(INDEX(#REF!,MATCH(A28,#REF!,0),9),"ERRO") -> ERRO
A29: E9571 | B29: =VLOOKUP(A29,#REF!,2,FALSE) ->  | C29: =IFERROR(INDEX(#REF!,MATCH(A29,#REF!,0),9),"ERRO") -> ERRO
A30: E9514 | B30: =VLOOKUP(A30,#REF!,2,FALSE) ->  | C30: =IFERROR(INDEX(#REF!,MATCH(A30,#REF!,0),9),"ERRO") -> ERRO
A31: E9511 | B31: =VLOOKUP(A31,#REF!,2,FALSE) ->  | C31: =IFERROR(INDEX(#REF!,MATCH(A31,#REF!,0),9),"ERRO") -> ERRO
A32: E9779 | B32: =VLOOKUP(A32,#REF!,2,FALSE) ->  | C32: =IFERROR(INDEX(#REF!,MATCH(A32,#REF!,0),9),"ERRO") -> ERRO
A33: E9559 | B33: =VLOOKUP(A33,#REF!,2,FALSE) ->  | C33: =IFERROR(INDEX(#REF!,MATCH(A33,#REF!,0),9),"ERRO") -> ERRO
A34: E9584 | B34: =VLOOKUP(A34,#REF!,2,FALSE) ->  | C34: =IFERROR(INDEX(#REF!,MATCH(A34,#REF!,0),9),"ERRO") -> ERRO
A35: E9021 | B35: =VLOOKUP(A35,#REF!,2,FALSE) ->  | C35: =IFERROR(INDEX(#REF!,MATCH(A35,#REF!,0),9),"ERRO") -> ERRO
A36: E9687 | B36: =VLOOKUP(A36,#REF!,2,FALSE) ->  | C36: =IFERROR(INDEX(#REF!,MATCH(A36,#REF!,0),9),"ERRO") -> ERRO
A37: E9667 | B37: =VLOOKUP(A37,#REF!,2,FALSE) ->  | C37: =IFERROR(INDEX(#REF!,MATCH(A37,#REF!,0),9),"ERRO") -> ERRO
A38: E9644 | B38: =VLOOKUP(A38,#REF!,2,FALSE) ->  | C38: =IFERROR(INDEX(#REF!,MATCH(A38,#REF!,0),9),"ERRO") -> ERRO
A39: E9592 | B39: =VLOOKUP(A39,#REF!,2,FALSE) ->  | C39: =IFERROR(INDEX(#REF!,MATCH(A39,#REF!,0),9),"ERRO") -> ERRO
A40: E9540 | B40: =VLOOKUP(A40,#REF!,2,FALSE) ->  | C40: =IFERROR(INDEX(#REF!,MATCH(A40,#REF!,0),9),"ERRO") -> ERRO
A41: E9515 | B41: =VLOOKUP(A41,#REF!,2,FALSE) ->  | C41: =IFERROR(INDEX(#REF!,MATCH(A41,#REF!,0),9),"ERRO") -> ERRO
A42: E9506 | B42: =VLOOKUP(A42,#REF!,2,FALSE) ->  | C42: =IFERROR(INDEX(#REF!,MATCH(A42,#REF!,0),9),"ERRO") -> ERRO
A43: E9256 | B43: =VLOOKUP(A43,#REF!,2,FALSE) ->  | C43: =IFERROR(INDEX(#REF!,MATCH(A43,#REF!,0),9),"ERRO") -> ERRO
A44: E9156 | B44: =VLOOKUP(A44,#REF!,2,FALSE) ->  | C44: =IFERROR(INDEX(#REF!,MATCH(A44,#REF!,0),9),"ERRO") -> ERRO
A45: E9146 | B45: =VLOOKUP(A45,#REF!,2,FALSE) ->  | C45: =IFERROR(INDEX(#REF!,MATCH(A45,#REF!,0),9),"ERRO") -> ERRO
A46: E9010 | B46: =VLOOKUP(A46,#REF!,2,FALSE) ->  | C46: =IFERROR(INDEX(#REF!,MATCH(A46,#REF!,0),9),"ERRO") -> ERRO
A47: E9519 | B47: =VLOOKUP(A47,#REF!,2,FALSE) ->  | C47: =IFERROR(INDEX(#REF!,MATCH(A47,#REF!,0),9),"ERRO") -> ERRO
A48: E9071 | B48: =VLOOKUP(A48,#REF!,2,FALSE) ->  | C48: =IFERROR(INDEX(#REF!,MATCH(A48,#REF!,0),9),"ERRO") -> ERRO
A49: E9064 | B49: =VLOOKUP(A49,#REF!,2,FALSE) ->  | C49: =IFERROR(INDEX(#REF!,MATCH(A49,#REF!,0),9),"ERRO") -> ERRO
A50: E9066 | B50: =VLOOKUP(A50,#REF!,2,FALSE) ->  | C50: =IFERROR(INDEX(#REF!,MATCH(A50,#REF!,0),9),"ERRO") -> ERRO
A51: E9535 | B51: =VLOOKUP(A51,#REF!,2,FALSE) ->  | C51: =IFERROR(INDEX(#REF!,MATCH(A51,#REF!,0),9),"ERRO") -> ERRO
A52: E9507 | B52: =VLOOKUP(A52,#REF!,2,FALSE) ->  | C52: =IFERROR(INDEX(#REF!,MATCH(A52,#REF!,0),9),"ERRO") -> ERRO
A53: E9568 | B53: =VLOOKUP(A53,#REF!,2,FALSE) ->  | C53: =IFERROR(INDEX(#REF!,MATCH(A53,#REF!,0),9),"ERRO") -> ERRO
A54: E9753 | B54: =VLOOKUP(A54,#REF!,2,FALSE) ->  | C54: =IFERROR(INDEX(#REF!,MATCH(A54,#REF!,0),9),"ERRO") -> ERRO
A55: E9623 | B55: =VLOOKUP(A55,#REF!,2,FALSE) ->  | C55: =IFERROR(INDEX(#REF!,MATCH(A55,#REF!,0),9),"ERRO") -> ERRO
A56: E9622 | B56: =VLOOKUP(A56,#REF!,2,FALSE) ->  | C56: =IFERROR(INDEX(#REF!,MATCH(A56,#REF!,0),9),"ERRO") -> ERRO
A57: E9678 | B57: =VLOOKUP(A57,#REF!,2,FALSE) ->  | C57: =IFERROR(INDEX(#REF!,MATCH(A57,#REF!,0),9),"ERRO") -> ERRO
G58: TOTAL | H58: =SUM(H13:H57) -> 
A61: CUSTO TOTAL MOBILIZAÇÃO E DESMOBILIZAÇÃO
A62: DESCRIÇÃO | B62: VALOR
A63: Custo Mobilização (km) | B63: =H58 -> 
A64: BDI (%) | B64: =BDI!C17 -> 0
A65: Custo Mobilização (R$/km) com BDI | B65: =B63+(B63*B64) -> 
A66: Total de Frentes | B66: =#REF! -> 
A67: Custo Mobilização (frentes x distancia) | B67: =B65*H6*B66 -> 

Sheet CANT
A1: LOGOTIPO DA EMPRESA
A4: CANTEIRO DE OBRAS PARA CONSTRUÇAO RODOVIÁRIA
A5: Descrição dos serviços | B5: Tipo de container | C5: Unidade | D5: Quantidade | E5: Preço unitário (R$) | F5: Total (R$)
A6: Escritório e seção técnica
A7: LOCACAO DE CONTAINER 2,30 X 6,00 M, ALT. 2,50 M, PARA ESCRITORIO, SEM DIVISORIAS INTERNAS E SEM SANITARIO (NAO INCLUI MOBILIZACAO/DESMOBILIZACAO) | B7: 10776 | C7: und | F7: =TRUNC(D7*E7,2) -> 0
A8: Banheiro e vestiário
A9: LOCACAO DE CONTAINER 2,30 X 4,30 M, ALT. 2,50 M, PARA SANITARIO, COM 3 BACIAS, 4 CHUVEIROS, 1 LAVATORIO E 1 MICTORIO (NAO INCLUI MOBILIZACAO/DESMOBILIZACAO) | B9: 10777 | C9: und | F9: =TRUNC(D9*E9,2) -> 0
D10: TOTAL DO CANTEIRO | F10: =SUM(F7:F9) -> 0
D11: DURAÇÃO (MESES) | F11: =F10*E11 -> 0
D12: BDI | F12: =BDI!C17 -> 0
D13: TOTAL DO CANTEIRO (com BDI) | F13: =F11+(F11*F12) -> 0

Sheet ADM
A1: LOGOTIPO DA EMPRESA
A4: parcela fixa da administração local (mão de obra)
A5: Código | B5: Discriminação | C5: Unidade | D5: Quantidade | F5: Custo Unitário (R$) | H5: Custo Total (R$)
B6: Mão de Obra
B7: Gerência Técnica
B8: Geral
A9: P9955 | B9: Engenheiro chefe | C9: mês | H9: =F9*D9 -> 0
A10: P9840 | B10: Encarregado geral | C10: mês | H10: =F10*D10 -> 0
A11: P9897 | B11: Técnico de meio ambiente | C11: mês | H11: =F11*D11 -> 0
A12: P9948 | B12: Motorista | C12: mês | H12: =F12*D12 -> 0
A13: P9878 | B13: Secretária | C13: mês | H13: =F13*D13 -> 0
F14: Subtotal do Item 1.1 | H14: =SUM(H9:I13) -> 0
B15: Auxiliar
A16: P9946 | B16: Engenheiro auxiliar | C16: mês | H16: =D16*F16 -> 0
A17: P9903 | B17: Auxiliar técnico | C17: mês | H17: =D17*F17 -> 0
F18: Subtotal do Item 1.2 | H18: =SUM(H16:I17) -> 0
B19: Gerência Administrativa
B20: Geral
A21: P9883 | B21: Chefe do setor administrativo | C21: mês | H21: =F21*D21 -> 0
A22: P9809 | B22: Encarregado administrativo | C22: mês | H22: =F22*D22 -> 0
A23: P9896 | B23: Porteiro | C23: mês | H23: =F23*D23 -> 0
A24: P9827 | B24: Vigia | C24: mês | H24: =F24*D24 -> 0
A25: P9948 | B25: Motorista | C25: mês | H25: =F25*D25 -> 0
F26: Subtotal do Item 1.3 | H26: =SUM(H21:I25) -> 0
B27: Auxiliar
A28: P9806 | B28: Auxiliar administrativo | C28: mês | H28: =F28*D28 -> 0
A29: P9842 | B29: Faxineiro | C29: mês | H29: =F29*D29 -> 0
F30: Subtotal do Item 1.4 | H30: =SUM(H28:I29) -> 0
H31: Total da Mão de Obra da Parcela Fixa | I31: =H30+H26+H18+H14 -> 0
A33: parcela fixa da administração local (veículos)
A34: Código | B34: Discriminação | C34: Unidade | D34: Quantidade | E34: Utilização Produtiva | F34: Utilização Improdutiva | G34: Custo Horário Produtivo (R$) | H34: Custo Horário Improdutivo (R$) | I34: Custo Total (R$)
A35: 2 | B35: Veículos
B36: Gerência Técnica
A37: 2.1 | B37: Geral
A38: E9093 | B38: Veículo Leve 53 kw | C38: mês | I38: =((E38*G38)+(F38*H38))*D38 -> 0
A39: E9560 | B39: Ônibus coletivo - 175 kw | C39: mês | I39: =((E39*G39)+(F39*H39))*D39 -> 0
H40: Subtotal do Item 2 | I40: =SUM(I38:I39) -> 0
A41: 2.2 | B41: Auxiliar
A42: E9093 | B42: Veículo Leve 53 kw | C42: mês | I42: =((E42*G42)+(F42*H42))*D42 -> 0
H43: Subtotal do Item 2 | I43: =SUM(I42) -> 0
A44: 2.3 | B44: Gerência Administrativa
A45: E9093 | B45: Veículo Leve 53 kw | C45: mês | I45: =((E45*G45)+(F45*H45))*D45 -> 0
H46: Subtotal do Item 2 | I46: =I45 -> 0
H47: Total dos Veículos da Parcela Fixa | I47: =I46+I43+I40 -> 0
A49: Composição de custo da equipe de produção de terraplenagem
A50: Código | B50: Discriminação | C50: Unidade | D50: Quantidade | F50: Custo Unitário (R$) | H50: Custo Total (R$)
B51: Equipe de Produção de Terraplenagem
A52: 3.1 | B52: Mão de Obra
A53: P9884 | B53: Encarregado de produção | C53: mês | H53: =F53*D53 -> 0
F54: Subtotal do Item 3.1 | H54: =SUM(H53:H53) -> 0
A55: Código | B55: Discriminação | C55: Unidade | D55: Quantidade | E55: Utilização Produtiva | F55: Utilização Improdutiva | G55: Custo Horário Produtivo (R$) | H55: Custo Horário Improdutivo (R$) | I55: Custo Total (R$)
A56: 3.2 | B56: Veículos
B57: Veículo Leve 53 kw | C57: mês | I57: =((E57*G57)+(F57*H57))*D57 -> 0
H58: Subtotal do Item 3.2 | I58: =SUM(I57:I57) -> 0
H59: Total da Equipe de Produção de Terraplenagem | I59: =I58+H54 -> 0
A61: Composição de custo da equipe de produção de pavimentação
A62: Código | B62: Discriminação | C62: Unidade | D62: Quantidade | F62: Custo Unitário (R$) | H62: Custo Total (R$)
B63: Equipe de Produção de Pavimentação
A64: 3.1 | B64: Mão de Obra
A65: P9893 | B65: Encarregado de produção | C65: mês | H65: =F65*D65 -> 0
F66: Subtotal do Item 3.1 | H66: =SUM(H65:H65) -> 0
A67: Código | B67: Discriminação | C67: Unidade | D67: Quantidade | E67: Utilização Produtiva | F67: Utilização Improdutiva | G67: Custo Horário Produtivo (R$) | H67: Custo Horário Improdutivo (R$) | I67: Custo Total (R$)
A68: 3.2 | B68: Veículos
B69: Veículo Leve 53 kw | C69: mês | I69: =((E69*G69)+(F69*H69))*D69 -> 0
H70: Subtotal do Item 3.2 | I70: =SUM(I69:I69) -> 0
H71: Total da Equipe de Produção de Pavimentação | I71: =I70+H66 -> 0
A73: Composição de custo da equipe de produção de drenagem
A74: Código | B74: Discriminação | C74: Unidade | D74: Quantidade | F74: Custo Unitário (R$) | H74: Custo Total (R$)
B75: Equipe de Produção de Pavimentação
A76: 3.1 | B76: Mão de Obra
A77: P9893 | B77: Encarregado de produção | C77: mês | H77: =F77*D77 -> 0
F78: Subtotal do Item 3.1 | H78: =SUM(H77:H77) -> 0
A79: Código | B79: Discriminação | C79: Unidade | D79: Quantidade | E79: Utilização Produtiva | F79: Utilização Improdutiva | G79: Custo Horário Produtivo (R$) | H79: Custo Horário Improdutivo (R$) | I79: Custo Total (R$)
A80: 3.2 | B80: Veículos
B81: Veículo Leve 53 kw | C81: mês | I81: =((E81*G81)+(F81*H81))*D81 -> 0
H82: Subtotal do Item 3.2 | I82: =SUM(I81:I81) -> 0
H83: Total da Equipe de Produção de Pavimentação | I83: =I82+H78 -> 0
A85: Composição de custo da equipe de produção de sinalização
A86: Código | B86: Discriminação | C86: Unidade | D86: Quantidade | F86: Custo Unitário (R$) | H86: Custo Total (R$)
B87: Equipe de Produção de Pavimentação
A88: 3.1 | B88: Mão de Obra
A89: P9893 | B89: Encarregado de produção | C89: mês | H89: =F89*D89 -> 0
F90: Subtotal do Item 3.1 | H90: =SUM(H89:H89) -> 0
A91: Código | B91: Discriminação | C91: Unidade | D91: Quantidade | E91: Utilização Produtiva | F91: Utilização Improdutiva | G91: Custo Horário Produtivo (R$) | H91: Custo Horário Improdutivo (R$) | I91: Custo Total (R$)
A92: 3.2 | B92: Veículos
B93: Veículo Leve 53 kw | C93: mês | I93: =((E93*G93)+(F93*H93))*D93 -> 0
H94: Subtotal do Item 3.2 | I94: =SUM(I93:I93) -> 0
H95: Total da Equipe de Produção de Pavimentação | I95: =I94+H90 -> 0
A97: Composição de custo da equipe topografia
A98: Código | B98: Discriminação | C98: Unidade | D98: Quantidade | F98: Custo Unitário (R$) | H98: Custo Total (R$)
B99: Equipe de Topografia
A100: 3.1 | B100: Mão de Obra
A101: P9949 | B101: Topográfo | C101: mês | H101: =F101*D101 -> 0
A102: P9950 | B102: Auxiliar de topografia | C102: mês | H102: =F102*D102 -> 0
F103: Subtotal do Item 3.1 | H103: =SUM(H101:I102) -> 0
A104: Código | B104: Discriminação | C104: Unidade | D104: Quantidade | E104: Utilização Produtiva | F104: Utilização Improdutiva | G104: Custo Horário Produtivo (R$) | H104: Custo Horário Improdutivo (R$) | I104: Custo Total (R$)
A105: 3.2 | B105: Veículos
B106: Veículo Leve 53 kw | C106: mês | I106: =((E106*G106)+(F106*H106))*D106 -> 0
H107: Subtotal do Item 3.2 | I107: =SUM(I106:I106) -> 0
H108: Total da Equipe de Produção de Topografia | I108: =I107+H103 -> 0
A110: Composição de custo do setor de medicina e segurança do trabalho
A111: Código | B111: Discriminação | C111: Unidade | D111: Quantidade | F111: Custo Unitário (R$) | H111: Custo Total (R$)
A112: 4 | B112: Setor de Medicina e Segurança do Trabalho
A113: P9876 | B113: Técnico de segurança do trabalho | C113: mês | H113: =F113*D113 -> 0
A114: P9864 | B114: Engenheiro de segurança do trabalho | C114: mês | H114: =F114*D114 -> 0
A115: P9851 | B115: Médico do trabalho | C115: mês | H115: =F115*D115 -> 0
A116: P9951 | B116: Médico de câmara hiperbárica | C116: mês | H116: =F116*D116 -> 0
F117: Subtotal do Item 4 | H117: =SUM(H113:I116) -> 0
A119: Parcela Variável - Composição de custo da equipe de frente de serviço
A120: Código | B120: Discriminação | C120: Unidade | D120: Quantidade | F120: Custo Unitário (R$) | H120: Custo Total (R$)
A121: 5 | B121: Equipe de Frente de Serviço | C121: equipexmês
A122: P9875 | B122: Encarregado de Turma | C122: mês | H122: =F122*D122 -> 0
A123: P9804 | B123: Apontador | C123: mês | H123: =F123*D123 -> 0
F124: Subtotal do Item 5 | H124: =SUM(H122:I123) -> 0
A126: Parcela Variável - Composição de custo da equipe de frente de serviço (Terraplenagem) - Somente Compactação
A127: Código | B127: Discriminação | C127: Unidade | D127: Quantidade | F127: Produção Horária (und/h) | H127: Efs
A128: 5.1 | B128: Equipe de Frente de Serviço | C128: equipexmês
C129: mês | H129: =(D129)/(F129*182.49) -> 
C130: mês | H130: =(D130)/(F130*182.49) -> 
C131: mês | H131: =(D131)/(F131*182.49) -> 
F132: Total de Equipes para Terraplenagem | H132: =SUM(H131:I131) -> 
A134: Parcela Variável - Composição de custo da acompanhamento das frentes de serviço de pavimentação
A135: Código | B135: Discriminação | C135: Unidade | D135: Quantidade | F135: Produção Horária (und/h) | H135: Efs
A136: 5.2 | B136: Equipe de Frente de Serviço | C136: equipe x mês
A137: 36170 | B137: Bloquete/piso intertravado de concreto - modelo onda/16 faces/retangular/t ijolinho/paver/holandes/paralelepipedo, *22 cm x 11* cm, e = 8 cm, resistencia de 35 mpa (nbr 9781), cor natural | C137: ='1.JANUARIA'!I22 -> m² | D137: ='1.JANUARIA'!J22 -> 42168 | H137: =(D137)/(F137*182.49) -> 
A138: 92404 ADAPTADA | B138: Execução de pavimento em piso intertravado, com bloco 16 faces de 22 x 11 cm, espessura 8 cm. af_10/2022 - exclusive fornecimento de bloquete | C138: ='1.JANUARIA'!I23 -> m² | D138: ='1.JANUARIA'!J23 -> 42000
A139: 5915014 | B139: =VLOOKUP(A139,#REF!,2,0) ->  | C139: ='1.JANUARIA'!I24 -> tkm | D139: ='1.JANUARIA'!J24 -> 516096
A140: 5915321 | B140: =VLOOKUP(A140,#REF!,2,0) ->  | C140: ='1.JANUARIA'!I25 -> tkm | D140: ='1.JANUARIA'!J25 -> 143136 | H140: =(D140)/(F140*182.49) -> 
A141: 5915321 | B141: =VLOOKUP(A141,#REF!,2,0) ->  | C141: ='1.JANUARIA'!I26 -> tkm | D141: ='1.JANUARIA'!J26 -> 37044
A142: 4011268 | B142: =VLOOKUP(A142,#REF!,2,0) ->  | C142: ='1.JANUARIA'!I27 -> m³ | D142: ='1.JANUARIA'!J27 -> 6300
A143: 4011209 | B143: =VLOOKUP(A143,#REF!,2,0) ->  | C143: ='1.JANUARIA'!I28 -> m² | D143: ='1.JANUARIA'!J28 -> 42000
F144: Total de Equipes para Pavimentação | H144: =SUM(H137:I143) -> 
A146: Parcela Variável - Composição de custo da acompanhamento das frentes de serviço de drenagem
A147: Código | B147: Discriminação | C147: Unidade | D147: Quantidade | F147: Efsdu | H147: Efs
A148: 5.3 | B148: Frentes de Serviço para Drenagem | C148: equipe x mês
A149: 94273 | B149: =VLOOKUP(A149,#REF!,2,0) ->  | C149: m | D149: =VLOOKUP(A149,'1.JANUARIA'!D11:J48,7,0) -> 12000 | H149: =D149*F149 -> 0
A150: 94287 | B150: =VLOOKUP(A150,#REF!,2,0) ->  | C150: m | D150: =VLOOKUP(A150,'1.JANUARIA'!D12:J49,7,0) -> 12000 | H150: =D150*F150 -> 0
F151: Total de Equipes para Drenagem | H151: =SUM(H149:I150) -> 0
A153: Parcela Variável - Composição de custo da acompanhamento das frentes de serviço de sinalização
A154: Código | B154: Discriminação | C154: Unidade | D154: Quantidade | F154: Produção Horária (und/h) | H154: Efs
A155: 5.4 | B155: Frentes de Serviço para Sinalização | C155: equipe x mês
A156: 5213440 | B156: =VLOOKUP(A156,#REF!,2,0) ->  | C156: ='1.JANUARIA'!I30 -> und | D156: ='1.JANUARIA'!J30 -> 30 | H156: =0.2*((D156)/(F156*182.49)) -> 
A157: 5213464 | B157: =VLOOKUP(A157,#REF!,2,0) ->  | C157: ='1.JANUARIA'!I31 -> und | D157: ='1.JANUARIA'!J31 -> 30 | H157: =0.2*((D157)/(F157*182.49)) -> 
A158: 5213863 | B158: =VLOOKUP(A158,#REF!,2,0) ->  | C158: ='1.JANUARIA'!I32 -> und | D158: ='1.JANUARIA'!J32 -> 60 | H158: =0.2*((D158)/(F158*182.49)) -> 
A159: 5213400 | B159: =VLOOKUP(A159,#REF!,2,0) ->  | C159: ='1.JANUARIA'!I33 -> m² | D159: ='1.JANUARIA'!J33 -> 1400
F160: Total de Equipes para Sinalização | H160: =SUM(H156:I159) -> 
A162: 3. PARCELA VARIÁVEL - EQUIPE DE CONTROLE TECNOLÓGICO
A163: LABORATÓRIO DE SOLOS
A164: Item | B164: Discriminação | F164: Unidade | G164: Quantidade | H164: Custo Unitário (R$) | I164: Custo Total (R$)
B165: Laboratório de Solos (equipe x mês)
B166: Mão de Obra
A167: P9858 | B167: Laboratorista | F167: func./mês | I167: =TRUNC(G167*H167,2) -> 0
A168: P9833 | B168: Auxiliar de laboratório | F168: func./mês | I168: =TRUNC(G168*H168,2) -> 0
H169: Subtotal do Item | I169: =SUM(I167:I168) -> 0
A170: Item | B170: Discriminação | C170: Und | D170: Quant | E170: Utilização Produtiva | F170: Utilização Improdutiva | G170: Horário Produtivo (R$) | H170: Horário Improdutivo (R$) | I170: Total (R$)
B171: Equipe de Controle Tecnológico
B172: Veículos
A173: E9125 | B173: Van furgão a diesel - 93 kW | C173: veic./mês | I173: =D173*((E173*G173)+(F173*H173)) -> 0
H174: Subtotal do Item | I174: =SUM(I173:I173) -> 0
H175: Total da Equipe do Laboratório de Solos | I175: =I169+I174 -> 0
A177: 3. PARCELA VARIÁVEL - EQUIPE DE CONTROLE TECNOLÓGICO
A178: LABORATÓRIO DE CONCRETO
A179: Item | B179: Discriminação | F179: Unidade | G179: Quantidade | H179: Custo Unitário (R$) | I179: Custo Total (R$)
B180: Laboratório de Solos (equipe x mês)
B181: Mão de Obra
A182: P9858 | B182: Laboratorista | F182: func./mês | I182: =TRUNC(G182*H182,2) -> 0
A183: P9833 | B183: Auxiliar de laboratório | F183: func./mês | I183: =TRUNC(G183*H183,2) -> 0
H184: Subtotal do Item | I184: =SUM(I182:I183) -> 0
A185: Item | B185: Discriminação | C185: Und | D185: Quant | E185: Utilização Produtiva | F185: Utilização Improdutiva | G185: Horário Produtivo (R$) | H185: Horário Improdutivo (R$) | I185: Total (R$)
B186: Equipe de Controle Tecnológico
B187: Veículos
A188: E9125 | B188: Van furgão a diesel - 93 kW | C188: veic./mês | I188: =D188*((E188*G188)+(F188*H188)) -> 0
H189: Subtotal do Item | I189: =SUM(I188:I188) -> 0
H190: Total da Equipe do Laboratório de Concreto | I190: =I184+I189 -> 0
A192: Equipes de laboratório de solos para pavimentação
A193: Item | B193: Discriminação | F193: Und | G193: Quant | H193: QE | I193: Els
A194: ='1.JANUARIA'!D27 -> 4011221 | B194: =VLOOKUP(A194,#REF!,2,0) ->  | F194: =VLOOKUP(A194,#REF!,3,0) ->  | G194: ='1.JANUARIA'!J27 -> 6300 | I194: =G194/H194 -> 
A195: ='1.JANUARIA'!D28 -> 4011209 | B195: =VLOOKUP(A195,#REF!,2,0) ->  | F195: =VLOOKUP(A195,#REF!,3,0) ->  | G195: ='1.JANUARIA'!J28 -> 42000 | I195: =G195/H195 -> 
H196: Total de equipes de Laboratório de Solos para Pavimentação | I196: =I194+I195 -> 
A198: Equipes de laboratório de Concreto
A199: Item | B199: Discriminação | F199: Und | G199: Quant | H199: QE | I199: Ela
A200: ='1.JANUARIA'!D22 -> 36170 | B200: BLOQUETE/PISO INTERTRAVADO DE CONCRETO - MODELO ONDA/16 FACES/RETANGULAR/T IJOLINHO/PAVER/HOLANDES/PARALELEPIPEDO, *22 CM X 11* CM, E = 8 CM, RESISTENCIA DE 35 MPA (NBR 9781), COR NATURAL | F200: ='1.JANUARIA'!I22 -> m² | G200: ='1.JANUARIA'!J22 -> 42168 | I200: =G200/H200 -> 
H201: Total de equipes de Laboratório de Concreto | I201: =SUM(I200:I200) -> 
A203: manutenção do canteiro de obras e acampamentos
A204: Código | B204: Discriminação | C204: Unidade | D204: Quantidade | F204: Custo Unitário (R$) | H204: Custo Total (R$)
B205: Manutenção do Canteiro de Obras e Acampamentos
A206: 6.1 | B206: Mão de Obra
A207: P9952 | B207: Pedreiro | C207: mês | H207: =F207*D207 -> 0
A208: P9954 | B208: Servente | C208: mês | H208: =F208*D208 -> 0
A209: P9953 | B209: Eletricista | C209: mês | H209: =F209*D209 -> 0
F210: Subtotal do Item 6.1 | H210: =SUM(H207:I209) -> 0
A212: Código | B212: Discriminação | C212: Unidade | D212: Quantidade | F212: Custo Produtivo (R$) | H212: Custo Total (R$)
A213: 6.2 | B213: Equipamentos
B214: Caminhão guindauto de 6 toneladas | C214: h/mês | H214: =F214*D214 -> 0
B215: Caminhão tanque de 8.000 litros | C215: h/mês | H215: =F215*D215 -> 0
A216: E9524 | B216: Motoniveladora | C216: h/mês | H216: =F216*D216 -> 0
F217: Subtotal do Item 6.2 | H217: =SUM(H214:I216) -> 0
G218: Total da Manutenção do Canteiro de Obras e Acampamentos | H218: =H217+H210 -> 0
A222: Resumo das parcelas de administração local
A223: Código | B223: Discriminação | C223: Unidade | D223: Quantidade | F223: Custo Unitário (R$) | H223: Custo Total (R$)
... 29 more rows

Sheet PROJ
A1: LOGOTIPO DA EMPRESA
A4: COMPOSIÇAO PREÇO PROJETO EXECUTIVO
A6: DISCRIMINAÇAO | F6: Pr. Unit. | G6: Pr. Total
A8: A· EOUIPE TECNICA | G8: =G9+G12 -> 0
B9: A. 1 - Pessoal de Nível Superior | C9: Unidade | D9: Quantitativo | E9: SICRO e Rel.Custos Gerais | G9: =G10+G11 -> 0
B10: Engenheiro | C10: mês | E10: P9812 | G10: =F10*D10 -> 0
B11: Topógrafo | C11: mês | E11: P9949 | G11: =F11*D11 -> 0
B12: A.2 - Pessoal de Nível Técnico e Aux. | G12: =G13+G14 -> 0
B13: Auxiliar de topógrafo | C13: mês | E13: P9950 | G13: =F13*D13 -> 0
B14: Auxiliar Técnico/Assistente de Engenharia | C14: mês | E14: P9903 | G14: =F14*D14 -> 0
A15: B - ENCARGOS SOCIAIS | G15: =G16 -> 0
B16: =CONCATENATE("Taxas ",'ENC. SOCIAIS'!E51,"%") -> Taxas 0% | C16: JÁ INCLUSAS EM "A"
A17: C - DESPESAS GERAIS | G17: =G18+G20+G19 -> 0
B18: C.1 - MATERIAIS DE CONSUMO | C18: Estimativa % como referência de equipe técnica com encargos sociais | G18: =F18*D18 -> 0
B19: C.2 - VEÍCULOS (Veículo leve picape 4 x 4 com capacidade de 1,10 t - 147 kW) | C19: h | E19: E9684 | G19: =F19*D19 -> 0
B20: C.3 - Estação total eletrônica com alcance máximo de 3.000 m | C20: h | E20: E9553 | G20: =F20*D20 -> 0
A21: D - ENSAIOS | G21: =SUM(G22:G25) -> 0
B22: Laboratorista | C22: mês | E22: P9858 | G22: =F22*D22 -> 0
B23: Auxiliar de Laboratório | C23: mês | E23: P9833 | G23: =F23*D23 -> 0
B24: Laboratório de solos | C24: mês | E24: B8957 | G24: =F24*D24 -> 0
B25: Laboratório de asfalto | C25: mês | E25: B8955 | G25: =F25*D25 -> 0
A26: I - SOMA (A+B+C+D) | G26: =G8+G15+G17+G21 -> 0
A27: II - CUSTOS ADMINISTRATIVOS | G27: =D27*G26 -> 0
A28: TOTAL | G28: =G26+G27 -> 0
F29: Por m²: | G29: =G28/(1200*7) -> 0

Sheet CPU
A1: LOGOTIPO DA EMPRESA
A4: EXECUÇÃO DE SERVIÇOS DE IMPLANTAÇÃO DE PAVIMENTAÇÃO EM BLOCO DE CONCRETO INTERTRAVADO (BLOQUETES), EM VIAS DE MUNICÍPIOS DIVERSOS INSERIDOS NA ÁREA DE ATUAÇÃO DA 1ª SUPERINTENDÊNCIA REGIONAL DA CODEVASF, NO ESTADO DE MINAS GERAIS - ITEM x - REGIÃO: xxxxxxxxxxxx/MG
F5: BDI %: | G5: =BDI!C17 -> 0
E6: Encargos Sociais: | G6: Horista | H6: Mensalista
G7: ='ENC. SOCIAIS'!E51/100 -> 0 | H7: ='ENC. SOCIAIS'!F51/100 -> 0
A8: COMPOSIÇÕES DE CUSTO UNITARIO
A9: CPU-02 | B9: CODEVASF | D9: Correção de vazamentos no ramal na rua sem pavimento com fornecimento do material hidráulico | E9: m | F9: COEF. | G9: PRECO UNITÁRIO (R$) | H9: TOTAL (R$)
A11: SICRO | B11: SICRO | C11: P9824 | D11: =VLOOKUP(C11,#REF!,2,0) ->  | E11: H | H11: =F11*G11 -> 0
A12: SICRO | B12: SICRO | C12: P9807 | D12: =VLOOKUP(C12,#REF!,2,0) ->  | E12: H | H12: 0
A13: INS. SINAPI | B13: SINAPI | C13: 9867 | D13: TUBO PVC, SOLDAVEL, DN 20 MM, AGUA FRIA (NBR-5648) | E13: m | H13: 0
A14: INSUMO | B14: ORSE | C14: 10585 | D14: Arco de serra | E14: un | H14: 0
A15: INS. SINAPI | B15: SINAPI | C15: 3859 | D15: LUVA SOLDAVEL COM ROSCA, PVC, 20 MM X 1/2", PARA AGUA FRIA PREDIAL | E15: un | H15: 0
E16: Sub total: | H16: =SUM(H11:H15) -> 0
F17: BDI | G17: =G5 -> 0 | H17: =H16*G17 -> 0
G18: Total Serviços: | H18: =H16+H17 -> 0
E19: =A9 -> CPU-02 | F19: PREÇO UNITÁRIO TOTAL: | H19: =H18 -> 0 | I19: =H16 -> 0
A21: CPU-04 | B21: CODEVASF | D21: CONTROLE TECNOLÓGICO - PROJETO | E21: m² | F21: COEF. | G21: PRECO UNITÁRIO (R$) | H21: TOTAL (R$)
A23: Insumo | B23: SICRO | C23: P9858 | D23: Laboratorista | E23: mês | H23: =F23*G23 -> 0
A24: Composição | B24: SICRO | C24: P9833 | D24: Auxiliar de Laboratório | E24: mês | H24: 0
A25: Composição | B25: SICRO | C25: *B8957 | D25: Laboratório de Solos | E25: mês | H25: 0
A26: Composição | B26: SICRO | C26: *B8956 | D26: Laboratório de concreto | E26: mês | H26: 0
B27: *Relatório de Custos Gerais do DNIT, página 1 | E27: Sub total: | H27: =SUM(H23:H26) -> 0
F28: BDI | G28: =G5 -> 0 | H28: =H27*G28 -> 0
E29: CPU-20 | F29: PREÇO UNITÁRIO TOTAL: | H29: =H27+H28 -> 0 | I29: =H27 -> 0

Sheet CPU SINAPI
A1: SINAPI - SISTEMA NACIONAL DE PESQUISA DE CUSTOS E ÍNDICES DA CONSTRUÇÃO CIVIL | F1: 1ª/SR - MINAS GERAIS
A2: PCI.818.01 - COMPOSIÇÕES ATIVAS ANALÍTICAS COM CUSTO | C2: ABRANGENCIA: NACIONAL DATA DE PREÇO : 06/2024 DATA REFERENCIA TECNICA: 12/07/2024
A3: * Composições constantes nos Relatórios publicados de Composições Analíticas para as 27 Unidades da Federação
A4: MACROCLASSE.CLASSE.GRUPO | B4: CÓDIGOS | C4: DESCRIÇÃO | D4: UNIDADE | E4: COEFICIENTE | F4: PREÇO UNITÁRIO | G4: PREÇO TOTAL
A5: 03.PAVI.INTE.004/001 | B5: 92404 ADAPTADA | C5: EXECUÇÃO DE PAVIMENTO EM PISO INTERTRAVADO, COM BLOCO 16 FACES DE 22 X 11 CM, ESPESSURA 8 CM - EXCLUSIVE FORNECIMENTO DE BLOQUETE | D5: M2 | F5: Pavimento Intertravado | G5: =G17 -> 0
A6: INSUMO | B6: 370 | C6: AREIA MEDIA - POSTO JAZIDA/FORNECEDOR (RETIRADO NA JAZIDA, SEM TRANSPORTE) | D6: M3 | E6: 0.0568 | G6: =ROUND(ROUND(E6,5)*ROUND(F6,2),2) -> 0
A7: INSUMO | B7: 4741 | C7: PO DE PEDRA (POSTO PEDREIRA/FORNECEDOR, SEM FRETE) | D7: M3 | E7: 0.0098 | G7: =ROUND(ROUND(E7,5)*ROUND(F7,2),2) -> 0
A8: INSUMO | B8: 36170 | C8: BLOQUETE/PISO INTERTRAVADO DE CONCRETO - MODELO ONDA/16 FACES/RETANGULAR/T IJOLINHO/PAVER/HOLANDES/PARALELEPIPEDO, *22 CM X 11* CM, E = 8 CM, RESISTENCIA DE 35 MPA (NBR 9781), COR NATURAL (FORNECIMENTO COM BDI DIFERENCIADO) | D8: M2 | E8: 1.004 | F8: 0 | G8: 0
A9: COMPOSICAO | B9: 88260 | C9: CALCETEIRO COM ENCARGOS COMPLEMENTARES | D9: H | E9: 0.2129 | G9: 0
A10: COMPOSICAO | B10: 88316 | C10: SERVENTE COM ENCARGOS COMPLEMENTARES | D10: H | E10: 0.2129 | G10: 0
A11: COMPOSICAO | B11: 91277 | C11: PLACA VIBRATÓRIA REVERSÍVEL COM MOTOR 4 TEMPOS A GASOLINA, FORÇA CENTRÍFUG A DE 25 KN (2500 KGF), POTÊNCIA 5,5 CV - CHP DIURNO | D11: CHP | E11: 0.0055 | G11: 0
A12: COMPOSICAO | B12: 91278 | C12: PLACA VIBRATÓRIA REVERSÍVEL COM MOTOR 4 TEMPOS A GASOLINA, FORÇA CENTRÍFUGA DE 25 KN (2500 KGF), POTÊNCIA 5,5 CV - CHI DIURNO | D12: CHP | E12: 0.101 | G12: 0
A13: COMPOSICAO | B13: 91283 | C13: CORTADORA DE PISO COM MOTOR 4 TEMPOS A GASOLINA, POTÊNCIA DE 13 HP, COM DISCO DE CORTE DIAMANTADO SEGMENTADO PARA CONCRETO, DIÂMETRO DE 350 MM, FURO DE 1" (14 X 1") - CHP DIURNO | D13: CHI | E13: 0.0038 | G13: =ROUND(ROUND(E13,5)*ROUND(F13,2),2) -> 0
A14: COMPOSICAO | B14: 91285 | C14: CORTADORA DE PISO COM MOTOR 4 TEMPOS A GASOLINA, POTÊNCIA DE 13 HP, COM DISCO DE CORTE DIAMANTADO SEGMENTADO PARA CONCRETO, DIÂMETRO DE 350 MM, FURO DE 1" (14 X 1") - CHI DIURNO | D14: CHI | E14: 0.1027 | G14: 0
D15: Sub total: | G15: =SUM(G6:G14) -> 0
F16: BDI | G16: =BDI!C17 -> 0
D17: Total Serviços: | G17: =ROUND(ROUND(G15,2)*ROUND(1+G16,4),2) -> 0

Sheet BDI
A1: LOGOTIPO DA EMPRESA
A2: OBRA:
A3: LOCAL:
A4: DATA BASE:
A5: DETALHAMENTO DO BDI - SEM DESONERAÇÃO
A6: EXECUÇÃO DE SERVIÇOS DE IMPLANTAÇÃO DE PAVIMENTAÇÃO EM BLOCO DE CONCRETO INTERTRAVADO (BLOQUETES), EM VIAS DE MUNICÍPIOS DIVERSOS INSERIDOS NA ÁREA DE ATUAÇÃO DA 1ª SUPERINTENDÊNCIA REGIONAL DA CODEVASF, NO ESTADO DE MINAS GERAIS - ITEM x - REGIÃO: xxxxxxxxxxxx/MG
A7: DESCRIÇÃO DOS SERVIÇOS | B7: PREÇO DE VENDA (%) | C7: CUSTO DIRETO (%)
A8: ADMINISTRAÇÃO CENTRAL
A9: DESPESA FINANCEIRAS
A10: SEGUROS E GARANTIAS CONTRATUAIS
A11: RISCOS
A12: LUCRO OPERACIONAL
A13: PIS
A14: COFINS
A15: ISSQN
A16: Contribuição Previdenciaria
B17: BDI | C17: =ROUND((1+(C8+C12))/(1-(B9+B10+B11+B13+B14+B15+B16))-1,4) -> 0
A18: Observação: O percentual de ISSQN aqui utilizado consiste apenas em um referencial médio. O valor real do ISSQN a ser adotado deve ser aquele proveniente das alíquotas dos municípios situados na área de influência das obras.
A52: DETALHAMENTO DO BDI DIFERENCIADO - SEM DESONERAÇÃO
A53: EXECUÇÃO DE SERVIÇOS DE IMPLANTAÇÃO DE PAVIMENTAÇÃO EM BLOCO DE CONCRETO INTERTRAVADO (BLOQUETES), EM VIAS DE MUNICÍPIOS DIVERSOS INSERIDOS NA ÁREA DE ATUAÇÃO DA 1ª SUPERINTENDÊNCIA REGIONAL DA CODEVASF, NO ESTADO DE MINAS GERAIS - ITEM x - REGIÃO: xxxxxxxxxxxx/MG
A55: DESCRIÇÃO DOS SERVIÇOS | B55: PREÇO DE VENDA (%) | C55: CUSTO DIRETO (%)
A56: ADMINISTRAÇÃO CENTRAL
A57: DESPESA FINANCEIRAS
A58: SEGUROS E GARANTIAS CONTRATUAIS
A59: RISCOS
A60: LUCRO OPERACIONAL
A61: PIS
A62: COFINS
A63: ISSQN
A64: Contribuição Previdenciaria
B65: BDI | C65: =ROUND((1+(C56+C60))/(1-(B57+B58+B59+B61+B62+B63+B64))-1,4) -> 0
A66: Fonte da composição, valores de referência e fórmula do BDI: Instrução Normativa N° 62/DNIT-SEDE

Sheet ENC. SOCIAIS
A1: LOGOTIPO DA EMPRESA
A6: NOME DA CONCORRENTE:
A7: EDITAL:
A8: FOLHA:
A9: EXECUÇÃO DE SERVIÇOS DE IMPLANTAÇÃO DE PAVIMENTAÇÃO EM BLOCO DE CONCRETO INTERTRAVADO (BLOQUETES), EM VIAS DE MUNICÍPIOS DIVERSOS INSERIDOS NA ÁREA DE ATUAÇÃO DA 1ª SUPERINTENDÊNCIA REGIONAL DA CODEVASF, NO ESTADO DE MINAS GERAIS - ITEM x - REGIÃO: xxxxxxxxxxxx/MG
A11: DETALHAMENTO DOS ENCARGOS SOCIAIS (%)
A12: VIGÊNCIA A PARTIR DE 12/2023 | C12: COM DESONERAÇÃO | E12: SEM DESONERAÇÃO
C14: HORISTA | D14: MENSALISTA | E14: HORISTA | F14: MENSALISTA
A16: GRUPO A
A17: A1 | B17: INSS | C17: 0 | D17: 0
A18: A2 | B18: SESI | C18: 1.5 | D18: 1.5
A19: A3 | B19: SENAI | C19: 1 | D19: 1
A20: A4 | B20: INCRA | C20: 0.2 | D20: 0.2
A21: A5 | B21: SEBRAE | C21: 0.6 | D21: 0.6
A22: A6 | B22: Salário Educação | C22: 2.5 | D22: 2.5
A23: A7 | B23: Seguro Contra Acidentes de Trabalho | C23: 3 | D23: 3
A24: A8 | B24: FGTS | C24: 8 | D24: 8
A25: A9 | B25: SECONCI | C25: 1 | D25: 1
A26: A | B26: Total | C26: =SUM(C17:C25) -> 17.8 | D26: =SUM(D17:D25) -> 17.8 | E26: =SUM(E17:E25) -> 0 | F26: =SUM(F17:F25) -> 0
A27: GRUPO B
A28: B1 | B28: Repouso Semanal Remunerado | C28: 17.88 | D28: -
A29: B2 | B29: Feriados | C29: 3.94 | D29: -
A30: B3 | B30: Auxílio-enfermidade | C30: 0.91 | D30: 0.69
A31: B4 | B31: 13° salário | C31: 10.98 | D31: 8.33
A32: B5 | B32: Licença-paternidade | C32: 0.07 | D32: 0.06
A33: B6 | B33: Faltas Justificadas | C33: 0.73 | D33: 0.56
A34: B7 | B34: Dias de chuva | C34: 1.45 | D34: -
A35: B8 | B35: Auxílio Acidente de Trabalho | C35: 0.11 | D35: 0.09
A36: B9 | B36: Férias Gozadas | C36: 11.35 | D36: 8.62
A37: B10 | B37: Salário Maternidade | C37: 0.03 | D37: 0.03
A38: B | B38: Total | C38: =SUM(C28:C37) -> 47.45 | D38: =SUM(D28:D37) -> 18.38 | E38: =SUM(E28:E37) -> 0 | F38: =SUM(F28:F37) -> 0
A39: GRUPO C
A40: C1 | B40: Aviso Prévio Indenizado | C40: 6.76 | D40: 5.14
A41: C2 | B41: Aviso Prévio Trabalhado | C41: 0.16 | D41: 0.12
A42: C3 | B42: Férias Indenizadas | C42: 2.28 | D42: 1.73
A43: C4 | B43: Depósito Rescisão Sem Justa Causa | C43: 3.81 | D43: 2.89
A44: C5 | B44: Indenização Adicional | C44: 0.57 | D44: 0.43
A45: C | B45: Total | C45: =SUM(C40:C44) -> 13.58 | D45: =SUM(D40:D44) -> 10.31 | E45: =SUM(E40:E44) -> 0 | F45: =SUM(F40:F44) -> 0
A46: GRUPO D
A47: D1 | B47: Reincidência de A sobre B | C47: 8.45 | D47: 3.27
A48: D2 | B48: Reincidência de Grupo A sobre Aviso Prévio Trabalhado e Reincidência do FGTS sobre Aviso Prévio Indenizado | C48: 0.57 | D48: 0.43
A49: D | B49: Total | C49: =SUM(C47:C48) -> 9.02 | D49: =SUM(D47:D48) -> 3.7 | E49: =SUM(E47:E48) -> 0 | F49: =SUM(F47:F48) -> 0 | H49: Fonte: Sinapi Cálculos e Parâmetros 5ª Edição - Atualizada em Agosto 2023
A51: T O T A L (%) | C51: =C26+C38+C45+C49 -> 87.85 | D51: =D26+D38+D45+D49 -> 50.19 | E51: =E26+E38+E45+E49 -> 0 | F51: =F26+F38+F45+F49 -> 0
